Cogmind - Beta 15 @@@ ROGUE MODE // 2025.05.26 @ 16:41:13 Player: aoemica Result: Destroyed by MAIN.C with Omega Cannon Performance ------------- Evolutions (9) 4500 Regions Visited (25) 5000 Robots Destroyed (265) 1325 Value Destroyed (14808) 14808 Prototype IDs (187) 3740 Alien Tech Used (6) 1200 Bonus (55881) 55881 TOTAL SCORE: 86454 Bonus ------- Triggered High Security 1000 High Alert Combat Kills 7974 Follower Combat Kills 4013 Network Hubs Disabled 600 Registered with UFD 300 Met Optimus in HQ 500 Met Warlord at Base 500 MAIN.C Attacked Warlord 500 Warlord Defense Kills 514 Built Enhanced Grunts 300 A7 Reached Mainframe 300 Met R17 at Cetus 500 Destroyed Superfortress 15000 Met Optimus at Protoforge 1000 Completed Drillbomb Mission10000 Optimus Survived to 0b1 3000 Destroyed MAIN.C Guards 500 Met MAIN.C 5000 Destroyed MAIN.C Shell 5000 Friendly Fire -620 Cogmind --------- Core Integrity 0/1600 Matter 285/300 Energy 100/100 System Corruption 15% Temperature Cool (0) Movement Core (50) Location -1/Command Parts ------- > --- POWER (3) -------- (None) > --- PROPULSION (8) --- (None) > --- UTILITY (11) ----- Concept Phasing Heat Sink Concept Thermoelectric Network Experimental Core Analyzer Improved Armor Integrity Analyzer Graphene Brace > --- WEAPON (3) ------- (None) > --- INVENTORY (5) ---- Experimental Antimatter Reactor Concept Chromion Battery (800) Concept NT7 Matterbank (132) Concept Cloak Mesh Concept Arcsight Missile Launcher Peak State ------------ > --- POWER ------------ Concept Zero-point Core Concept Zero-point Core Concept Zero-point Core > --- PROPULSION ------- Gravjet Array Gravjet Array Gravjet Array Concept Gyrokinetic System Concept Gyrokinetic System > --- UTILITY ---------- Concept Phasing Heat Sink Concept Thermoelectric Network Concept Antigrav Storage Unit Experimental Active Sensor Suite Concept Weapon Articulator Experimental Core Analyzer Concept Cloak Mesh Concept Cloak Mesh Centrium Heavy Armor Plating > --- WEAPON ----------- Concept Plasma Driver Sigix Broadsword > --- INVENTORY -------- Experimental Antimatter Reactor Experimental Antigrav System Experimental Antigrav System Gravjet Array Gravjet Array Concept Chromion Battery Concept NT7 Matterbank Concept Countertargeting System Improved Armor Integrity Analyzer Mini Quantum Capacitor Experimental Reaction Control System Experimental Weapon Shielding Graphene Brace Advanced Hardlight Generator Advanced Point Defense System Hacking Suite Concept Impact Drone Bay Transdimensional Reconstructor Heavy Quantum Rifle Concept Plasma Driver Omega Cannon Concept Arcsight Missile Launcher [Rating: 310] Favorites ----------- Power Concept Zero-point Core Engine Light Ion Engine Power Core Concept Zero-point Core Reactor Micro Antimatter Reactor Propulsion Flightbrick Treads Light Treads Leg Aluminum Leg Wheel Armored Wheel Hover Unit Gravjet Array Flight Unit Flightbrick Utility Advanced Hacking Suite Device Seismic Detector Storage Medium Storage Unit Processor Advanced Signal Interpreter Hackware Advanced Hacking Suite Protection Layered Light Armor Plating Weapon Companion Sword Energy Gun Subdweller Laser Energy Cannon Subdweller Beam Cannon Ballistic Gun Assault Rifle Ballistic Cannon Light Antimatter Cannon Launcher Z-bomb Delivery System Special Weapon Multitool Slashing Weapon Companion Sword Piercing Weapon Plasma Lance Special Melee Weapon Advanced Datajack Build | -11 -10 -10 -7 -7 -5 -5 -5 -5 -5 -5 -5 -4 -4 -4 -4 -4 -4 -3 -3 -3 -2 -2 -2 -1 -1 ------- Run | Yrd Mat Sub Rec Scr Fac Was Fac Ext Cet Arc Hub Fac Was Fac Upp Upp War Pro Res Tes Res Qua Frg Acc Com Slots Evolved 18 | . . . . . 10 . . . . . . 2 . . . . . . 2 . 2 . . 2 . Power 2 | . . . . . . . . . . . . 1 . . . . . . . . . . . 1 . Propulsion 6 | . . . . . 4 . . . . . . 1 . . . . . . . . 1 . . . . Utility 9 | . . . . . 6 . . . . . . . . . . . . . 2 . 1 . . . . Weapon 1 | . . . . . . . . . . . . . . . . . . . . . . . . 1 . Parts Attached 176 | 1 . 9 5 5 29 1 6 . 2 6 5 5 . 8 1 . 9 . 1 11 1 8 52 2 9 Power 18 | . . . 1 . 3 . . . . . 2 1 . 1 . . . . . 3 . 2 4 1 . Engine 2 | . . . 1 . 1 . . . . . . . . . . . . . . . . . . . . Core 13 | . . . . . 2 . . . . . 2 1 . 1 . . . . . 2 . 1 3 1 . Reactor 3 | . . . . . . . . . . . . . . . . . . . . 1 . 1 1 . . Propulsion 39 | . . 3 2 1 5 . . . . 1 . 2 . 1 . . 2 . . 1 1 2 15 . 3 Treads 4 | . . 2 1 1 . . . . . . . . . . . . . . . . . . . . . Leg 1 | . . . . . . . . . . 1 . . . . . . . . . . . . . . . Wheel 2 | . . 1 1 . . . . . . . . . . . . . . . . . . . . . . Hover 11 | . . . . . . . . . . . . . . . . . . . . . . . 8 . 3 Flight 21 | . . . . . 5 . . . . . . 2 . 1 . . 2 . . 1 1 2 7 . . Utility 87 | 1 . 1 1 2 18 1 5 . 1 4 2 2 . 4 1 . 5 . 1 2 . 3 27 1 5 Device 44 | 1 . 1 . . 6 . . . . 3 1 1 . 2 . . 3 . . 1 . 3 18 1 3 Storage 5 | . . . 1 . 2 . . . . . . . . . . . 1 . . . . . 1 . . Processor 10 | . . . . . 4 . 1 . . . . . . . . . . . . . . . 4 . 1 Hackware 17 | . . . . 1 5 . 4 . . 1 . 1 . 2 . . 1 . 1 1 . . . . . Protection 11 | . . . . 1 1 1 . . 1 . 1 . . . 1 . . . . . . . 4 . 1 Artifact . | . . . . . . . . . . . . . . . . . . . . . . . . . . Weapon 32 | . . 5 1 2 3 . 1 . 1 1 1 . . 2 . . 2 . . 5 . 1 6 . 1 Energy Gun 6 | . . 1 . . . . . . . 1 . . . . . . 1 . . 2 . . 1 . . Energy Cannon 6 | . . 1 1 . . . . . . . . . . . . . . . . 1 . . 2 . 1 Ballistic Gun 4 | . . 3 . . . . . . 1 . . . . . . . . . . . . . . . . Ballistic Cannon 2 | . . . . . . . . . . . . . . 1 . . . . . 1 . . . . . Launcher 3 | . . . . . 1 . . . . . . . . . . . . . . . . . 2 . . Special Weapon 7 | . . . . 1 2 . 1 . . . 1 . . 1 . . . . . . . . 1 . . Impact Weapon . | . . . . . . . . . . . . . . . . . . . . . . . . . . Slashing Weapon 2 | . . . . 1 . . . . . . . . . . . . . . . . . 1 . . . Piercing Weapon 1 | . . . . . . . . . . . . . . . . . 1 . . . . . . . . Special Melee Weapon 1 | . . . . . . . . . . . . . . . . . . . . 1 . . . . . Unidentified Prototypes 31 | . . . . 1 . . . . 2 1 . . . . 1 . 6 . . 6 . 1 13 . . Corrupted Parts 1 | . . . . 1 . . . . . . . . . . . . . . . . . . . . . System Corruption 2 | . . . . 2 . . . . . . . . . . . . . . . . . . . . . Parts Lost 31 | . . . 1 . 2 . . . . . . . . . . . . . . . . 1 3 . 24 Power 3 | . . . . . . . . . . . . . . . . . . . . . . . . . 3 Propulsion 10 | . . . . . . . . . . . . . . . . . . . . . . . 1 . 9 Utility 13 | . . . . . 2 . . . . . . . . . . . . . . . . 1 2 . 8 Weapon 5 | . . . 1 . . . . . . . . . . . . . . . . . . . . . 4 Highest Loss Streak 17 | . . . 1 . 1 . . . . . . . . . . . . . . . . 1 1 . 17 To Critical Strikes . | . . . . . . . . . . . . . . . . . . . . . . . . . . Average Backups 10 | 6 7 6 11 14 7 9 8 8 9 9 9 8 9 9 9 9 7 9 8 8 8 8 11 20 14 Power . | 1 1 . . . 1 1 1 1 1 1 1 . . . . . . . . 1 1 1 . 1 1 Propulsion 2 | 4 4 2 3 3 . 1 1 1 1 1 1 1 1 2 3 3 3 4 3 2 1 . 2 4 1 Utility 3 | . 1 . 4 7 2 2 2 3 3 3 2 2 3 2 2 2 1 2 . . . . 4 10 7 Weapon 2 | 1 1 2 1 2 1 3 3 2 3 3 2 3 4 2 3 3 1 2 2 4 6 4 3 3 2 Tool/Special . | . . . . . . . . . . . . . . . . . . . . . . . . . . Unused Backups 53 | 6 . 7 1 6 5 . . . . . 1 . . . . . 1 . . 1 . 3 17 2 3 Power 5 | 1 . 1 . . . . . . . . . . . . . . . . . 1 . . 1 . 1 Propulsion 18 | 2 . 4 . 1 1 . . . . . . . . . . . 1 . . . . . 9 . . Utility 17 | 1 . . . 2 3 . . . . . 1 . . . . . . . . . . . 6 2 2 Weapon 11 | 2 . 2 1 3 . . . . . . . . . . . . . . . . . 3 . . . Tool/Special 2 | . . . . . 1 . . . . . . . . . . . . . . . . . 1 . . Average Slot Usage (%) 84 | . 100 100 100 96 63 70 73 75 75 74 79 80 81 80 81 81 80 81 82 83 80 81 80 75 73 Engine 4 | . 14 14 14 14 1 . . . . . . . . . . . . . . . . . . . . Core 3 | . . . . . 3 5 5 5 5 5 5 8 9 8 9 9 8 9 8 4 3 3 5 12 11 Treads 7 | . . 23 14 19 . . . . . . . . . . . . . . . . . . . . . Wheel 1 | . . . 13 8 . . . . . . . . . . . . . . . . . . . . . Hover 2 | . . . . . . . . . . . . . . . . . . . . . . . 7 20 21 Flight 8 | . . . . . 10 10 10 10 10 10 10 13 13 13 13 13 13 13 12 12 15 20 17 . . Device 14 | . 14 14 14 8 16 15 14 10 10 11 15 12 13 12 13 13 12 13 16 16 15 18 19 23 21 Storage 7 | . 14 14 14 14 4 5 5 5 5 5 5 4 4 4 4 4 4 4 4 4 3 3 4 4 4 Processor 7 | . . . . . 10 15 15 15 15 15 15 13 13 13 13 13 13 13 12 12 11 9 10 4 7 Hackware 5 | . . . . . 5 10 14 20 20 18 15 13 13 13 13 13 13 13 14 16 15 10 1 . . Protection 3 | . . . . 5 6 5 5 5 5 5 5 4 4 4 4 4 4 4 4 4 3 3 4 4 2 Energy Gun 1 | . . 9 . . . . . . . . . . . . . . 1 . . . . . 1 . . Energy Cannon 2 | . . 2 8 5 . . . . . . . . . . . . . . . . 1 . 1 3 2 Ballistic Gun 4 | . 28 15 19 6 . . . . . . . . . . . . . . . . . . . . . Special Weapon 1 | . . . . 5 . . . . . . 4 4 4 1 . . . 4 4 . . . . . . Slashing Weapon 3 | . . . . 7 4 5 4 4 5 5 5 4 4 4 4 4 3 . . . . 3 2 3 1 Peak Build Rating 310 | 7 7 14 21 28 96 96 107 109 115 115 115 130 128 132 139 132 140 132 145 161 170 185 281 310 308 Average Rating 112 | 6 7 9 17 24 87 94 101 107 107 108 114 126 128 128 132 131 131 132 143 151 166 170 220 308 248 On Entrance 113 | 6 7 7 14 21 27 96 94 107 107 107 107 115 128 128 132 132 132 132 132 145 157 170 171 281 287 Naked Turns . | . . . . . . . . . . . . . . . . . . . . . . . . . . Heaviest Build 128 | 12 12 19 63 63 38 37 40 37 35 36 42 36 35 40 38 38 42 38 41 48 50 50 114 122 128 Greatest Support 128 | 20 20 40 40 40 37 37 37 37 37 37 37 44 44 46 43 46 43 43 46 45 57 64 122 122 128 Greatest Overweight (x) 5 | . . . 5 5 1 . 1 . . 1 1 . . . . . 1 . . 1 . . 1 . 3 Average Overweight (x) . | . . . 3 3 . . . . . . . . . . . . . . . . . . . . . Largest Inventory Capacity 25 | 8 8 8 20 20 20 10 10 10 10 10 10 10 10 10 10 10 10 10 10 10 10 10 25 25 25 Average Capacity 13 | 8 8 8 19 20 9 10 10 10 10 10 10 10 10 10 10 10 10 10 10 10 10 10 17 25 24 Most Carried 25 | 7 7 8 20 20 15 10 10 10 10 10 10 10 10 10 10 10 10 10 10 10 10 10 25 25 25 Average Carried 12 | 6 7 7 15 18 8 10 9 9 10 9 10 9 10 9 10 10 8 10 9 9 9 9 14 23 16 Final Capacity 25 | 8 8 8 20 20 10 10 10 10 10 10 10 10 10 10 10 10 10 10 10 10 10 10 25 25 5 Final Carried 25 | 7 7 8 20 17 10 10 10 10 10 10 10 10 10 10 10 10 10 10 10 10 10 10 25 25 5 Class Distribution -------------------- 35% | Mutant 17% | Hacker-Ninja 9% | Hacker-Scout 9% | Scavenger-Sprinter 8% | Scavenger-Scout 6% | Scout 3% | Wizard-Ninja 3% | Hacker-Sprinter Dominant Class ---------------- Mutant | -10/Materials Mutant | -10/Subcaves Mutant | -7/Recycling Mutant | -7/Scraptown Scout | -5/Factory Hacker-Scout | -5/Waste Hacker-Scout | -5/Factory Hacker-Scout | -5/Extension Hacker-Scout | -5/Cetus Hacker-Scout | -5/Archives Hacker-Ninja | -5/Hub_04(d) Hacker-Ninja | -4/Factory Hacker-Ninja | -4/Waste Hacker-Ninja | -4/Factory Hacker-Ninja | -4/Upper Caves Hacker-Ninja | -4/Upper Caves Hacker-Ninja | -4/Warlord Hacker-Ninja | -3/Proximity Caves Hacker-Ninja | -3/Research Wizard-Ninja | -3/Testing Wizard-Ninja | -2/Research Wizard-Ninja | -2/Quarantine Scavenger-Scout | -2/Protoforge Ninja | -1/Access Mutant | -1/Command Resources | -11 -10 -10 -7 -7 -5 -5 -5 -5 -5 -5 -5 -4 -4 -4 -4 -4 -4 -3 -3 -3 -2 -2 -2 -1 -1 ----------- Run | Yrd Mat Sub Rec Scr Fac Was Fac Ext Cet Arc Hub Fac Was Fac Upp Upp War Pro Res Tes Res Qua Frg Acc Com Matter Collected 10483 | 247 . 139 79 88 586 164 226 212 65 113 156 217 . 319 41 62 213 41 . 310 10 115 6253 80 747 Remotely . | . . . . . . . . . . . . . . . . . . . . . . . . . . Salvage Created 11691 | 185 . 358 101 . 1355 . 269 134 . 221 277 190 . 594 . . 179 . 35 799 37 426 5261 138 1132 Parts 521 | 15 . 22 7 . 59 . 8 6 . 13 15 9 . 35 . . 1 . 3 48 4 20 243 11 2 Haulers Intercepted 13 | . . . . . 7 . 2 . . . . . . 1 . . . . . 1 . . 2 . . Recyclers Shooed 1 | . . . . . . . . . . . . . . . . . . . . . . 1 . . . Parts Field Recycled . | . . . . . . . . . . . . . . . . . . . . . . . . . . Retrieved Matter . | . . . . . . . . . . . . . . . . . . . . . . . . . . Parts Self-Destructed 28 | . . 25 . . . . . . . . . . . . . . . 3 . . . . . . . Prevented 1 | . . . . . . . . . . . . . . . . . . 1 . . . . . . . Kills | -11 -10 -10 -7 -7 -5 -5 -5 -5 -5 -5 -5 -4 -4 -4 -4 -4 -4 -3 -3 -3 -2 -2 -2 -1 -1 ------- Run | Yrd Mat Sub Rec Scr Fac Was Fac Ext Cet Arc Hub Fac Was Fac Upp Upp War Pro Res Tes Res Qua Frg Acc Com Combat Hostiles Destroyed 187 | . . 8 2 . 18 . 4 . . . 5 . . 2 . . 4 . . . . 2 125 2 15 Melee 29 | . . . . . 9 . . . . . 1 . . . . . . . . . . 2 17 . . Guns 13 | . . 6 2 . . . . . . . . . . . . . 3 . . . . . 2 . . Cannons 55 | . . 1 . . . . . . . . . . . . . . . . . . . . 49 2 3 AOE 79 | . . . . . 9 . 4 . . . 4 . . . . . 1 . . . . . 51 . 10 Classes Destroyed 29 | 2 . 5 . . 7 . . . . . . . . . . . 2 . . . . . 13 . . Worker 10 | . . . . . 1 . . . . . 3 . . 4 . . . . . . . . . 1 1 Builder 9 | . . . . . 3 . . . . . 1 . . 5 . . . . . . . . . . . Tunneler 6 | 5 . . . . . . . . . . 1 . . . . . . . . . . . . . . Hauler 13 | . . . . . 7 . 2 . . . . . . 1 . . . . . 1 . . 2 . . Recycler 9 | 1 . . . . 1 . . 1 . . 1 1 . 1 . . . . . 1 . 2 . . . Mechanic 5 | . . . . . . . . . . . . . . . . . . . . . . . 5 . . Operator 11 | . . . . . 2 . . 1 . 6 . 1 . . . . . . . . . . 1 . . Drone 16 | . . . . . . . . . . . . . . . . . . . . . . . 16 . . Turret 1 | . . 1 . . . . . . . . . . . . . . . . . . . . . . . Watcher 11 | . . . . . 1 . 1 . . . 2 1 . 1 . . . . 1 1 1 1 . 1 . Swarmer 43 | . . 2 . . 13 . 4 . . . 4 . . . . . . . . . . . 15 . 5 Cutter 2 | . . . . . . . . . . . . . . . . . . . . . . . . 2 . Saboteur 6 | . . . . . . . . . . . . . . . . . . . . . . . 6 . . Grunt 20 | . . . . . 3 . . . . . . . . 2 . . 2 . . . . . 13 . . Brawler 4 | . . . . . . . . . . . . . . . . . 1 . . . . . 3 . . Duelist 3 | . . . . . . . . . . . . . . . . . . . . . . . 3 . . Protector 2 | . . . . . . . . . . . . . . . . . . . . . . . 2 . . Researcher 3 | . . . . . . . . . . . . . . . . . . . . . . . 3 . . Sentry 13 | . . 1 2 . . . . . . . 1 . . . . . . . . . . . 9 . . Demolisher 1 | . . . . . . . . . . . . . . . . . 1 . . . . . . . . Specialist 1 | . . . . . . . . . . . . . . . . . . . . . . . 1 . . Hunter 12 | . . . . . . . . . . . . . . . . . . . . . . . 10 . 2 Programmer 18 | . . . . . 2 . . . . . . . . . . . . . . . . 2 11 . 3 M Guard 2 | . . . . . . . . . . . . . . . . . . . . . . . . . 2 Hotshot 2 | . . . . . . . . . . . . . . . . . . . . . . . 2 . . Decapitator 7 | . . . . . . . . . . . . . . . . . . . . . . . 7 . . Immortal 4 | . . . . . . . . . . . . . . . . . . . . . . . 4 . . Combat Programmer 2 | . . . . . . . . . . . . . . . . . . . . . . . . . 2 Striker 8 | . . . . . . . . . . . . . . . . . . . . . . . 8 . . Executioner 13 | . . . . . . . . . . . . . . . . . . . . . . . 13 . . Alpha 7 2 | . . . . . . . . . . . . . . . . . . . . . . . 2 . . Artisan 1 | . . 1 . . . . . . . . . . . . . . . . . . . . . . . Subdweller 5 | . . 5 . . . . . . . . . . . . . . . . . . . . . . . Scrapoid 2 | . . . . . . . . . . . . . . . . . . . . . . . 2 . . Best Kill Streak 14 | 4 . 3 2 . 8 . 4 1 . 5 9 1 . 8 . . 1 . 1 2 1 2 14 2 13 Combat Bots Only 13 | . . 2 2 . 5 . 4 . . . 4 . . 2 . . 1 . . . . 2 13 2 12 Max Kills in Single Turn 7 | 1 . 1 1 . 5 . 3 1 . 1 4 1 . 7 . . 1 . 1 1 1 1 4 1 3 Gunslinging . | . . . . . . . . . . . . . . . . . . . . . . . . . . Exploded 4 | . . . . . 3 . 3 . . . 2 . . . . . 1 . . . . . 4 . 3 Melee 1 | . . . . . 1 . . . . . 1 . . . . . . . . . . 1 1 . . Uniques/NPCs Destroyed 1 | . . . . . . . . . . . . . . . . . . . . . . . . . 1 MAIN.C Shell (-1/Command) Combat | -11 -10 -10 -7 -7 -5 -5 -5 -5 -5 -5 -5 -4 -4 -4 -4 -4 -4 -3 -3 -3 -2 -2 -2 -1 -1 -------- Run | Yrd Mat Sub Rec Scr Fac Was Fac Ext Cet Arc Hub Fac Was Fac Upp Upp War Pro Res Tes Res Qua Frg Acc Com Hostile Shots Fired 787 | . . 42 54 . 54 . 3 3 . 2 5 18 . 20 2 1 2 . . . 23 26 174 35 323 Missed 320 | . . 17 20 . 27 . . 1 . 1 . 13 . 13 . 1 1 . . . 14 11 85 18 98 Intercepted 6 | . . . . . . . . . . . . . . . . . . . . . . . . . 6 Hits 467 | . . 25 34 . 27 . 3 2 . 1 5 5 . 7 2 . 1 . . . 9 15 89 17 225 Melee 5 | . . . . . . . . . . . . . . . . . . . . . . . 1 4 . Projectile 462 | . . 25 34 . 27 . 3 2 . 1 5 5 . 7 2 . 1 . . . 9 15 88 13 225 AOE 14 | . . . . . . . . . . . . . . . . . . . . . . . 2 2 10 Critical Strikes 28 | . . . . . 1 . . 2 . . 1 . . . . . . . . . . 2 8 2 12 Actively Blocked 23 | . . . . . . . . . . . . . . . . . . . . . . 2 7 2 12 Part Disruptions 9 | . . . . . . . . . . . . . . . . . . . . . . . 1 . 8 Damage Taken 13719 | . 4 436 258 156 869 . 71 73 . 128 176 118 . 171 40 . 107 . . . 272 322 2763 332 7423 Core 2473 | . . 150 28 . 200 . 10 . . 59 45 . . 28 17 . 12 . . . 28 . 265 51 1580 Absorbed by Shields 758 | . . . . . . . . 17 . . . . . . . . . . . . . . 19 195 527 Redirected to Shielding 143 | . . . . . . . . . . . . . . . . . . . . . . . 143 . . Ignored by Resistances 816 | . . . . . . . . . . . . . . . . . . . . . . . 115 . 701 Regen/Repaired (Parts) 1229 | . . . . . . . . 64 . . . . . . . . 17 . . . . 387 599 67 95 Core Remaining (%) 76 | 100 . . . 28 . . . . . . 68 . . . . . . 95 . 100 . . 66 . . Volleys Fired 481 | 10 . 45 7 . 10 . 2 . . . 4 . . 7 . 5 38 . . 6 6 . 241 29 71 Largest 2 | 2 . 2 2 . 1 . 1 . . . 1 . . 1 . 1 1 . . 1 1 . 1 1 1 Hottest 150 | 40 . 100 110 . 39 . 39 . . . 39 . . 51 . 51 40 . . 50 50 . 150 140 140 Shots Fired 505 | 20 . 57 13 . 10 . 2 . . . 4 . . 7 . 5 38 . . 6 6 . 239 29 69 Gun 115 | 20 . 37 12 . . . . . . . . . . . . . 33 . . . . . 13 . . Cannon 321 | . . 20 1 . . . . . . . . . . 7 . 5 . . . 6 6 . 187 29 60 Launcher 59 | . . . . . 7 . 2 . . . 4 . . . . . 5 . . . . . 32 . 9 Special 10 | . . . . . 3 . . . . . . . . . . . . . . . . . 7 . . Kinetic 153 | 20 . 21 12 . . . . . . . . . . 7 . 5 . . . . . . 77 . 11 Thermal 250 | . . 36 1 . . . . . . . . . . . . . . . . 6 6 . 123 29 49 Explosive 59 | . . . . . 7 . 2 . . . 4 . . . . . 5 . . . . . 32 . 9 Electromagnetic . | . . . . . . . . . . . . . . . . . . . . . . . . . . Entropic 33 | . . . . . . . . . . . . . . . . . 33 . . . . . . . . Robot Hit Streak 23 | 17 . 13 20 . 1 . . . . . 1 . . . . . 7 . . . . . 23 11 15 Robot Miss Streak 3 | 1 . 2 . . 2 . . . . . . . . . . . 3 . . . . . 2 . 3 Penetration Max 1 | . . . . . . . . . . . . . . . . . . . . . . . 1 . 1 Secondary Targets 1 | . . . 1 . . . . . . . . . . . . . . . . . . . . . . Max Gunslinging Chain 1 | . . . 1 . . . . . . . . . . . . . . . . . . . . . . Capacitor 147 | . . . . . . . . . . . . . . . . . . . . . . . 110 . 37 Shots Hit Robots 488 | 18 . 32 12 . 59 . 15 6 . 10 10 5 . 8 . . 22 . 2 37 1 12 189 5 45 Core Hits 398 | 7 1 13 6 . 37 . 7 1 . 2 20 2 . 33 . . 16 . 1 12 1 3 168 3 65 Critical Kills 9 | . . 1 . . . . . . . . . . . . . . . . . . . . 6 . 2 Critical Parts Destroyed . | . . . . . . . . . . . . . . . . . . . . . . . . . . Critical Strikes 26 | . . 1 . . 4 . . . . . . . . . . . . . . 1 . 2 16 . 2 Meltdown 9 | . . 1 . . . . . . . . . . . . . . . . . . . . 6 . 2 Blast 7 | . . . . . . . . . . . . . . . . . . . . . . . 7 . . Sever 5 | . . . . . . . . . . . . . . . . . . . . . . 2 3 . . Impale 1 | . . . . . . . . . . . . . . . . . . . . 1 . . . . . Melee Attacks 517 | . . . . . 125 . 41 10 . 13 21 47 . 44 . 4 1 2 2 62 15 27 61 38 4 Impact . | . . . . . . . . . . . . . . . . . . . . . . . . . . Slashing 435 | . . . . . 125 . 41 10 . 13 21 47 . 44 . 4 1 . . . . 26 61 38 4 Piercing 63 | . . . . . . . . . . . . . . . . . . 2 2 43 15 1 . . . Sneak Attacks 80 | . . . . . 10 . 5 2 . 8 2 2 . 3 . . . . 2 20 . 4 20 2 . Combat Hostiles 3 | . . . . . . . . . . 1 1 . . . . . . . . . . . 1 . . Follow-up Attacks . | . . . . . . . . . . . . . . . . . . . . . . . . . . Damage Inflicted 59753 | 186 16 567 264 . 3916 . 1160 370 . 918 1280 309 . 1276 . . 1600 . 182 1853 58 1226 35013 672 8887 Guns 2068 | 186 . 261 248 . . . . . . . . . . . . . 1177 . . . . . 196 . . Cannons 15673 | . . 306 . . . . . . . . . . . . . . . . . . . . 12798 244 2325 Explosions 26405 | . . . . . 1017 . 308 . . . 799 . . 794 . . 423 . . . . . 16502 . 6562 Melee 15575 | . . . . . 2899 . 852 370 . 918 481 309 . 482 . . . . 182 1853 58 1226 5517 428 . Ramming 32 | . 16 . 16 . . . . . . . . . . . . . . . . . . . . . . Kinetic 7984 | 186 . 202 248 . . . . . . . . . . . . . . . . . . . 6321 . 1027 Thermal 8624 | . . 365 . . . . . . . . . . . 44 . . . . . . . . 6673 244 1298 Explosive 25611 | . . . . . 1017 . 308 . . . 799 . . . . . 423 . . . . . 16502 . 6562 Electromagnetic 750 | . . . . . . . . . . . . . . 750 . . . . . . . . . . . Impact . | . . . . . . . . . . . . . . . . . . . . . . . . . . Slashing 13482 | . . . . . 2899 . 852 370 . 918 481 309 . 482 . . . . . . . 1226 5517 428 . Piercing 2093 | . . . . . . . . . . . . . . . . . . . 182 1853 58 . . . . Entropic 1177 | . . . . . . . . . . . . . . . . . 1177 . . . . . . . . Highest Corruption 15 | . . . . 2 6 6 6 11 11 11 2 . 7 7 7 7 7 . . . . . 5 . 15 Average Corruption 5 | . . . . 2 5 6 6 7 11 7 2 . 7 7 7 7 7 . . . . . 2 . 8 Corruption Purged 31 | . . . . . . . . . . 11 . . . . . . . . . . . . 20 . . Corruption Blocked . | . . . . . . . . . . . . . . . . . . . . . . . . . . Effects 179 | . . . . 5 14 8 21 17 16 10 16 . 1 18 14 8 . . . . . . 21 . 10 Message Errors 45 | . . . . . 3 4 5 3 4 3 5 . . 5 4 3 . . . . . . 4 . 2 Matter Fused 41 | . . . . 1 3 2 6 2 3 3 2 . 1 7 3 . . . . . . . 6 . 2 Heat Flow Errors 26 | . . . . 1 1 1 3 2 5 . 3 . . 2 3 1 . . . . . . 2 . 2 Energy Discharges 24 | . . . . 1 2 . 4 5 . 1 4 . . 1 2 2 . . . . . . 2 . . Parts Rejected 2 | . . . . . . 1 . . 1 . . . . . . . . . . . . . . . . Parts Fused 5 | . . . . . 1 . 1 1 . 1 1 . . . . . . . . . . . . . . Data Loss (minor) 22 | . . . . 1 3 . . 3 1 2 1 . . 2 1 1 . . . . . . 5 . 2 Data Loss (major) 6 | . . . . . 1 . 1 . 1 . . . . 1 1 . . . . . . . 1 . . Alerts 3 | . . . . 1 . . 1 . . . . . . . . 1 . . . . . . . . . Misdirections 2 | . . . . . . . . 1 1 . . . . . . . . . . . . . . . . Weapon Failures 3 | . . . . . . . . . . . . . . . . . . . . . . . 1 . 2 Overload Shots 2 | . . . . . . . . . . . . . . . . . . . . . . . 2 . . Effects 1 | . . . . . . . . . . . . . . . . . . . . . . . 1 . . Short Circuit 1 | . . . . . . . . . . . . . . . . . . . . . . . 1 . . Overflow Damage 5066 | . . . . . 355 . 58 83 . 312 37 42 . 28 . . . . 65 196 . 285 3354 175 76 Projectiles 578 | . . . . . . . . . . . . . . . . . . . . . . . 567 11 . Explosions 1332 | . . . . . 134 . . . . . . . . . . . . . . . . . 1122 . 76 Melee 3156 | . . . . . 221 . 58 83 . 312 37 42 . 28 . . . . 65 196 . 285 1665 164 . Knockbacks 29 | . 1 . 1 . . . . . . . . . . . . . . . . . . . 27 . . Impact 2 | . 1 . 1 . . . . . . . . . . . . . . . . . . . . . . Kinetic 24 | . . . . . . . . . . . . . . . . . . . . . . . 24 . . Secondary 3 | . . . . . . . . . . . . . . . . . . . . . . . 3 . . Self-Inflicted Damage . | . . . . . . . . . . . . . . . . . . . . . . . . . . Shots . | . . . . . . . . . . . . . . . . . . . . . . . . . . Rammed 3 | . . . 3 . . . . . . . . . . . . . . . . . . . . . . Targets Rammed 6 | . 3 . 3 . . . . . . . . . . . . . . . . . . . . . . Kicked 3 | . 3 . . . . . . . . . . . . . . . . . . . . . . . . Crushed . | . . . . . . . . . . . . . . . . . . . . . . . . . . Highest Temperature 296 | . . 9 106 132 156 185 236 187 278 . 234 16 9 266 296 270 48 4 3 56 160 14 262 102 187 Average Temperature 37 | . . 7 50 70 67 101 103 79 123 . 100 4 4 21 54 63 8 2 1 7 40 14 74 33 110 Received Heat Transfer 742 | . . 123 78 . 45 . 9 36 . 12 12 12 . . 12 . 30 . . . . . 156 16 201 Effects 2 | . . . . . . . . . . . . . . 2 . . . . . . . . . . . Interference 2 | . . . . . . . . . . . . . . 2 . . . . . . . . . . . Siege Activations . | . . . . . . . . . . . . . . . . . . . . . . . . . . Martial Activations . | . . . . . . . . . . . . . . . . . . . . . . . . . . Shielding Activations . | . . . . . . . . . . . . . . . . . . . . . . . . . . Robots Disrupted 2 | . . . . . . . . . . . 1 . . 1 . . . . . . . . . . . Combat Hostiles 2 | . . . . . . . . . . . 1 . . 1 . . . . . . . . . . . Robots Corrupted 2 | . . . . . . . . . . . . . . 2 . . . . . . . . . . . Combat Hostiles 2 | . . . . . . . . . . . . . . 2 . . . . . . . . . . . Parts Fried 5 | . . . . . . . . . . . . . . 5 . . . . . . . . . . . Impact Corruptions . | . . . . . . . . . . . . . . . . . . . . . . . . . . Robots Melted 9 | . . 1 . . . . . . . . . . . . . . . . . . . . 6 . 2 Combat Hostiles 9 | . . 1 . . . . . . . . . . . . . . . . . . . . 6 . 2 Parts Melted 17 | . . 4 . . . . . . . . . . . . . . . . . . . . 13 . . Heat Transferred 5871 | . . 482 . . . . . . . . . . . 50 . . . . . . . . 4304 150 885 Parts Sabotaged . | . . . . . . . . . . . . . . . . . . . . . . . . . . Parts Stolen . | . . . . . . . . . . . . . . . . . . . . . . . . . . Parts Stripped . | . . . . . . . . . . . . . . . . . . . . . . . . . . Power Chain Reactions 2 | . . . . . . . . . . . . . . 2 . . . . . . . . . . . Alert | -11 -10 -10 -7 -7 -5 -5 -5 -5 -5 -5 -5 -4 -4 -4 -4 -4 -4 -3 -3 -3 -2 -2 -2 -1 -1 ------- Run | Yrd Mat Sub Rec Scr Fac Was Fac Ext Cet Arc Hub Fac Was Fac Upp Upp War Pro Res Tes Res Qua Frg Acc Com Maximum Alert Level 5 | . . . . . 2 1 2 1 . . 2 . . 1 . . . . . . . . 5 5 5 Low Security (%) 48 | 100 100 . 100 . 36 57 29 98 100 100 29 100 100 98 . . . . 100 100 100 100 10 . . Level 1 9 | . . . . . 43 42 54 1 . . 28 . . 1 . . . . . . . . . . . Level 2 9 | . . . . . 20 . 16 . . . 42 . . . . . . . . . . . 14 . . Level 3 6 | . . . . . . . . . . . . . . . . . . . . . . . 17 . . Level 4 14 | . . . . . . . . . . . . . . . . . . . . . . . 40 . . Level 5 10 | . . . . . . . . . . . . . . . . . . . . . . . 16 90 62 High Security 1 | . . . . . . . . . . . . . . . . . . . . . . . . 9 37 Max Security . | . . . . . . . . . . . . . . . . . . . . . . . . . . Peak Influence 3225 | 15 30 . 44 . 638 239 511 225 140 175 643 198 47 257 . . . . 23 65 29 45 3225 2621 2124 Initial 1934 | . 3 . . . . 219 70 57 5 16 . 186 47 25 . . . . 23 8 14 2 3 1934 1676 Average 599 | 4 11 . 5 . 268 169 279 56 77 62 315 71 46 68 . . . . 11 28 11 8 1134 2281 1921 Influence Increases 13602 | 30 30 95 167 . 1440 52 1260 632 342 239 974 350 . 727 30 60 414 105 22 397 94 192 4332 965 653 Destroy 0b10 Robot/C 5420 | . . 80 40 . 700 . 540 320 160 80 400 . . 220 . . 220 80 . . . 40 2200 40 300 Destroy 0b10 Robot/NC 640 | 30 . . . . 95 . 30 40 5 30 60 15 . 60 . . . . 5 65 5 15 160 10 15 Destroy Leader 792 | . . . . . 144 . 148 36 . . 86 2 . 34 . . . 10 2 4 2 12 260 12 40 Allied During Kill 1304 | . . . . . 80 . 362 226 165 110 221 . . 21 . . 119 . . . . . . . . Trap Triggered on 0b10 60 | . . . . . . . . . . . . . . 60 . . . . . . . . . . . Successful Hack 541 | . . . 6 . 67 . 54 . . . 18 60 . 63 . . . . . 39 . 14 169 51 . Select Force Hacks 150 | . 30 . 120 . . . . . . . . . . . . . . . . . . . . . . Disable Machine 975 | . . . . . 45 . 30 . . 15 30 15 . 90 . . . . . 165 . 60 450 60 15 Destroy Structure 1400 | . . . 1 . 174 52 66 10 12 4 114 78 . 74 . . . . . 34 57 21 403 162 138 Partial Spotted 540 | . . . . . 45 . 30 . . . 45 30 . 30 . . . . 15 60 15 30 225 15 . Lose Combat Pursuer 1080 | . . 15 . . 90 . . . . . . 150 . 75 30 60 75 15 . 30 15 . 465 15 45 Active Sensor Use 700 | . . . . . . . . . . . . . . . . . . . . . . . . 600 100 Influence Decreases 11593 | 25 15 115 167 . 814 577 1243 740 312 279 593 595 99 507 287 60 161 323 42 386 115 190 1114 1569 1265 Entered New Map 3459 | . 2 10 . . . 407 31 61 5 24 . 195 89 12 96 . . 253 12 7 12 3 4 1291 945 Time Decay 5066 | 25 13 105 157 . 484 90 342 270 155 215 333 380 10 309 191 60 161 30 30 369 93 136 770 278 60 Lost Part 306 | . . . 10 . 20 . . . . . . . . . . . . . . . . 6 30 . 240 Lost Ally 1264 | . . . . . 310 80 270 82 152 40 110 20 . 110 . . . 40 . 10 10 . 10 . 20 Purge Threat 1498 | . . . . . . . 600 327 . . 150 . . 76 . . . . . . . 45 300 . . Squads Dispatched 88 | . 2 . . . 22 . 11 2 . . 5 11 . 7 . 1 . . 1 3 2 2 6 12 1 Investigation 40 | . 2 . . . 9 . 6 . . . 1 7 . 5 . . . . 1 . 1 . 1 6 1 Extermination 21 | . . . . . 4 . 1 . . . 2 3 . 1 . . . . . 3 1 2 1 3 . Reinforcement 22 | . . . . . 7 . 4 2 . . 2 1 . 1 . . . . . . . . 4 1 . Assault 4 | . . . . . 1 . . . . . . . . . . 1 . . . . . . . 2 . Garrison 1 | . . . . . 1 . . . . . . . . . . . . . . . . . . . . Intercept . | . . . . . . . . . . . . . . . . . . . . . . . . . . Searches Triggered . | . . . . . . . . . . . . . . . . . . . . . . . . . . Construction Impeded 5 | . . . . . 1 . 1 . . . 2 . . 1 . . . . . . . . . . . Haulers Reinforced 3 | . . . . . 2 . 1 . . . . . . . . . . . . . . . . . . Active Scanning Responses 7 | . . . . . . . . . . . . . . . . . . . . . . . . 6 1 Cargo Convoy Interrupts 2 | . . . . . 1 . 1 . . . . . . . . . . . . . . . . . . Stealth | -11 -10 -10 -7 -7 -5 -5 -5 -5 -5 -5 -5 -4 -4 -4 -4 -4 -4 -3 -3 -3 -2 -2 -2 -1 -1 --------- Run | Yrd Mat Sub Rec Scr Fac Was Fac Ext Cet Arc Hub Fac Was Fac Upp Upp War Pro Res Tes Res Qua Frg Acc Com Distress Signals 34 | . . . . . 3 . 3 1 2 . . 3 . 2 . . 1 . . . 1 . 17 1 . Communications Jammed 14 | . . . . . . . . . . . . . . 7 . . . . . . 3 . 4 . . Distress Signals 14 | . . . . . . . . . . . . . . 7 . . . . . . 3 . 4 . . Times Spotted 512 | . . 14 2 . 52 7 17 12 1 5 14 22 4 29 1 4 34 1 1 8 20 9 217 17 21 Peak Tracking Total 13 | . . 6 2 . 6 5 3 4 1 2 4 7 4 6 2 5 7 4 1 3 5 4 11 10 13 Tactical Retreats 60 | . . 1 . . 6 1 . . . . . 7 . 8 1 4 4 1 . 3 4 1 17 1 1 Traps | -11 -10 -10 -7 -7 -5 -5 -5 -5 -5 -5 -5 -4 -4 -4 -4 -4 -4 -3 -3 -3 -2 -2 -2 -1 -1 ------- Run | Yrd Mat Sub Rec Scr Fac Was Fac Ext Cet Arc Hub Fac Was Fac Upp Upp War Pro Res Tes Res Qua Frg Acc Com Traps Triggered 34 | . . 1 . 1 4 . . 3 . . 2 4 . . . . . . . 1 1 . 16 1 . Indirectly . | . . . . . . . . . . . . . . . . . . . . . . . . . . Trap Hack Attempts . | . . . . . . . . . . . . . . . . . . . . . . . . . . Triggered . | . . . . . . . . . . . . . . . . . . . . . . . . . . Disarmed . | . . . . . . . . . . . . . . . . . . . . . . . . . . Reprogrammed 12 | . . . . . . . . . . . . . . 6 . . . . . . . 6 . . . Reused 6 | . . . . . . . . . . . . . . 6 . . . . . . . . . . . Traps Extracted . | . . . . . . . . . . . . . . . . . . . . . . . . . . Installed 1 | . . . . 1 . . . . . . . . . . . . . . . . . . . . . Triggered 6 | . . . . . . . . . . . . . . 6 . . . . . . . . . . . Most Traps Carried 1 | . . . . 1 . . . . . . . . . . . . . . . . . . . . . Objects Rigged 5 | . . . . . . . . . . . . . . 5 . . . . . . . . . . . Exploded 4 | . . . . . . . . . . . . . . 4 . . . . . . . . . . . Machines | -11 -10 -10 -7 -7 -5 -5 -5 -5 -5 -5 -5 -4 -4 -4 -4 -4 -4 -3 -3 -3 -2 -2 -2 -1 -1 ---------- Run | Yrd Mat Sub Rec Scr Fac Was Fac Ext Cet Arc Hub Fac Was Fac Upp Upp War Pro Res Tes Res Qua Frg Acc Com Machines Disabled 75 | . . 1 . . 3 . 2 . . 1 2 1 . 6 . . 3 . . 11 . 4 36 4 1 Max in Single Turn 6 | . . 1 . . 1 . 1 . . . 1 1 . 3 . . 1 . . 1 . 1 6 2 1 Garrison Access 13 | . . . . . 1 . 1 . . . 2 3 . 3 . . . . . 1 . 1 1 . . Network Hub 3 | . . . . . . . . . . . 3 . . . . . . . . . . . . . . Machines Repaired . | . . . . . . . . . . . . . . . . . . . . . . . . . . Machines Dismantled 1 | . . . . . . . . . . . 1 . . . . . . . . . . . . . . Machines Sabotaged . | . . . . . . . . . . . . . . . . . . . . . . . . . . Overloaded Fab Kills . | . . . . . . . . . . . . . . . . . . . . . . . . . . Hacking | -11 -10 -10 -7 -7 -5 -5 -5 -5 -5 -5 -5 -4 -4 -4 -4 -4 -4 -3 -3 -3 -2 -2 -2 -1 -1 --------- Run | Yrd Mat Sub Rec Scr Fac Was Fac Ext Cet Arc Hub Fac Was Fac Upp Upp War Pro Res Tes Res Qua Frg Acc Com Machines Accessed 141 | . 1 2 10 2 21 . 15 9 1 . 6 19 . 16 . . 1 . 2 9 4 6 10 6 1 Terminals 82 | . . . 5 . 11 . 7 8 1 . 4 8 . 8 . . . . 1 8 2 4 8 6 1 Fabricators 9 | . . . . . 4 . 3 . . . . 1 . 1 . . . . . . . . . . . Repair Stations 2 | . . . . . . . . 1 . . . . . . . . . . . . . 1 . . . Recycling Units 27 | . 1 . 5 . 4 . 4 . . . . 6 . 4 . . . . 1 . 1 . 1 . . Scanalyzers 3 | . . . . . 1 . . . . . . 1 . . . . . . . . 1 . . . . Garrison Access 13 | . . . . . 1 . 1 . . . 2 3 . 3 . . . . . 1 . 1 1 . . Total Hacks 473 | . 1 6 21 3 63 . 42 30 1 . 13 65 . 76 . . 1 . 3 37 14 30 48 16 3 Successful 302 | . 1 6 9 3 26 . 25 18 1 . 11 47 . 57 . . 1 . 3 27 13 25 26 2 1 Failed 170 | . . . 12 . 37 . 17 11 . . 2 18 . 19 . . . . . 10 1 5 22 14 2 Catastrophic 30 | . . . 4 . 9 . 3 1 . . . 2 . . . . . . . . . . 4 7 . Database Lockouts 1 | . . . . . . . . 1 . . . . . . . . . . . . . . . . . Manual 239 | . 1 . 21 . 32 . 22 9 1 . 7 38 . 31 . . . . 2 21 8 12 30 4 . Terminals 356 | . . . 15 . 34 . 28 28 1 . 11 51 . 58 . . . . 1 36 10 19 45 16 3 Fabricators 34 | . . . . . 17 . 8 . . . . 2 . 7 . . . . . . . . . . . Repair Stations 12 | . . . . . . . . 2 . . . . . . . . . . . . . 10 . . . Recycling Units 34 | . 1 . 6 . 5 . 5 . . . . 7 . 5 . . . . 2 . 2 . 1 . . Scanalyzers 9 | . . . . . 5 . . . . . . 2 . . . . . . . . 2 . . . . Garrison Access 18 | . . . . . 2 . 1 . . . 2 3 . 6 . . . . . 1 . 1 2 . . Terminal Hacks 141 | . . 6 1 3 7 . 13 14 1 . 5 23 . 26 . . 1 . . 11 6 9 13 1 1 Record 6 | . . 5 . 1 . . . . . . . . . . . . . . . . . . . . . Part Schematic 10 | . . . 1 . . . . . . . . 5 . 2 . . . . . 2 . . . . . Robot Schematic 1 | . . . . . . . . . . . . 1 . . . . . . . . . . . . . Robot Analysis 4 | . . . . . . . 1 1 . . . . . 1 . . . . . . . . 1 . . Prototype ID Bank 21 | . . . . . 1 . 1 5 . . 1 3 . 5 . . . . . 2 . 2 1 . . Open Door 9 | . . . . 1 . . 1 3 1 . . . . . . . 1 . . . 1 . . . 1 Level Access Points 3 | . . . . . . . . . . . 1 . . 1 . . . . . . . . . 1 . Branch Access Points 5 | . . . . . 1 . 1 . . . . 1 . 1 . . . . . . 1 . . . . Emergency Access Points 1 | . . . . . . . . . . . . . . 1 . . . . . . . . . . . Machine Index 3 | . . . . . . . . . . . . 1 . 1 . . . . . . . . 1 . . Terminal Index 5 | . . . . . 1 . 1 . . . 1 1 . . . . . . . . 1 . . . . Alert Level 4 | . . . . . . . 1 1 . . . 1 . . . . . . . . . . 1 . . Unreport Threat 12 | . . . . . . . 4 3 . . 1 . . 1 . . . . . . . 1 2 . . Locate Traps 10 | . . . . . 2 . 1 . . . . 2 . 1 . . . . . . . 2 2 . . Reprogram Traps 3 | . . . . . . . . . . . . . . 2 . . . . . . . 1 . . . Maintenance Status 1 | . . . . . . . . . . . . . . . . . . . . . . 1 . . . Surveillance Status 1 | . . . . . . . . . . . . . . . . . . . . . . . 1 . . Patrol Status 9 | . . . . . . . 1 . . . . 2 . 2 . . . . . 1 2 . 1 . . Recall Investigation 3 | . . . . . . . . . . . . 1 . 1 . . . . . . 1 . . . . Recall Extermination 8 | . . . . . . . 1 . . . 1 1 . 2 . . . . . 2 . 1 . . . Recall Reinforcements 1 | . . . . . . . . 1 . . . . . . . . . . . . . . . . . Hauler Manifests 4 | . . . . . 1 . . . . . . 2 . 1 . . . . . . . . . . . Registered Components 1 | . . . . . . . . . . . . . . 1 . . . . . . . . . . . Registered Prototypes 1 | . . . . . . . . . . . . . . 1 . . . . . . . . . . . Zone Layout 13 | . . . . . 1 . . . . . . 2 . 2 . . . . . 4 . 1 3 . . Proto ID Catalog 2 | . . 1 . 1 . . . . . . . . . . . . . . . . . . . . . Fabricator Hacks 18 | . . . . . 7 . 4 . . . . 1 . 6 . . . . . . . . . . . Load Schematic 12 | . . . . . 5 . 3 . . . . 1 . 3 . . . . . . . . . . . Build 6 | . . . . . 2 . 1 . . . . . . 3 . . . . . . . . . . . Repair Station Hacks 9 | . . . . . . . . 2 . . . . . . . . . . . . . 7 . . . Scan Component 5 | . . . . . . . . 1 . . . . . . . . . . . . . 4 . . . Repair 4 | . . . . . . . . 1 . . . . . . . . . . . . . 3 . . . Recycling Unit Hacks 3 | . . . . . . . 1 . . . . . . . . . . . 1 . 1 . . . . Retrieve Components 3 | . . . . . . . 1 . . . . . . . . . . . 1 . 1 . . . . Scanalyzer 6 | . . . . . 2 . . . . . . 2 . . . . . . . . 2 . . . . Insert Component 4 | . . . . . 1 . . . . . . 1 . . . . . . . . 2 . . . . Analyze 2 | . . . . . 1 . . . . . . 1 . . . . . . . . . . . . . Garrison Access Hacks 13 | . . . . . 1 . 1 . . . 2 3 . 3 . . . . . 1 . 1 1 . . Seal Access 13 | . . . . . 1 . 1 . . . 2 3 . 3 . . . . . 1 . 1 1 . . Unauthorized Hacks 112 | . 1 . 8 . 9 . 6 2 . . 4 18 . 22 . . . . 2 15 4 8 12 1 . Terminals 81 | . . . 4 . 4 . . 2 . . 4 11 . 17 . . . . 1 15 3 8 11 1 . Track 15 | . . . . . . . . . . . 2 2 . 3 . . . . . 2 . 1 5 . . Assimilate 13 | . . . . . 1 . . 2 . . 1 . . 1 . . . . 1 2 1 2 2 . . Botnet 17 | . . . 2 . 2 . . . . . . 2 . 3 . . . . . 3 1 1 2 1 . Detonate 1 | . . . . . . . . . . . . . . 1 . . . . . . . . . . . Disrupt 9 | . . . . . 1 . . . . . . . . 3 . . . . . 2 . 1 2 . . Operators 5 | . . . . . . . . . . . . 2 . 1 . . . . . 1 1 . . . . Skim 20 | . . . 2 . . . . . . . . 5 . 5 . . . . . 5 . 3 . . . Sabotage 1 | . . . . . . . . . . . 1 . . . . . . . . . . . . . . Fabricators 6 | . . . . . 2 . 2 . . . . 1 . 1 . . . . . . . . . . . Prioritize 1 | . . . . . . . . . . . . . . 1 . . . . . . . . . . . Recompile 5 | . . . . . 2 . 2 . . . . 1 . . . . . . . . . . . . . Repair Stations . | . . . . . . . . . . . . . . . . . . . . . . . . . . Recycling Units 25 | . 1 . 4 . 3 . 4 . . . . 6 . 4 . . . . 1 . 1 . 1 . . Tunnel 5 | . 1 . 4 . . . . . . . . . . . . . . . . . . . . . . Fedlink 20 | . . . . . 3 . 4 . . . . 6 . 4 . . . . 1 . 1 . 1 . . Scanalyzers . | . . . . . . . . . . . . . . . . . . . . . . . . . . Garrison Access . | . . . . . . . . . . . . . . . . . . . . . . . . . . Data Cores Recovered 4 | . . . . . 1 . 1 . . . . 1 . . . . . . . . . . 1 . . Used 4 | . . . . . 1 . 1 . . . . 1 . . . . . . . . . . 1 . . Hacking Detections 72 | . . . 6 . 15 . 8 5 . . 3 4 . 8 . . . . . 6 1 3 7 6 . Full Trace Events 6 | . . . 1 . 4 . . . . . . . . 1 . . . . . . . . . . . Feedback Events 1 | . . . . . 1 . . . . . . . . . . . . . . . . . . . . Hackware Fried 1 | . . . . . 1 . . . . . . . . . . . . . . . . . . . . Feedback Blocked . | . . . . . . . . . . . . . . . . . . . . . . . . . . Robot Schematics Acquired 12 | . . . . . . . . . . . . 1 . . . . . . . 7 . . 4 . . Robots Built . | . . . . . . . . . . . . . . . . . . . . . . . . . . Authchips . | . . . . . . . . . . . . . . . . . . . . . . . . . . Time . | . . . . . . . . . . . . . . . . . . . . . . . . . . Total Robot Build Rating . | . . . . . . . . . . . . . . . . . . . . . . . . . . Part Schematics Acquired 61 | . . . 1 1 1 . . . . . . 6 . 2 . . . . . 27 . . 23 . . Parts Built 6 | . . . . . 2 . 1 . . . . . . 3 . . . . . . . . . . . Authchips 5 | . . . . . 2 . 1 . . . . . . 2 . . . . . . . . . . . Time 366 | . . . . . 152 . 50 . . . . . . 164 . . . . . . . . . . . Total Part Build Rating 32 | . . . . . 10 . 5 . . . . . . 17 . . . . . . . . . . . Parts Repaired 4 | . . . . . . . . 1 . . . . . . . . . . . . . 3 . . . Time 156 | . . . . . . . . 44 . . . . . . . . . . . . . 112 . . . Parts Recycled . | . . . . . . . . . . . . . . . . . . . . . . . . . . Recycled Matter . | . . . . . . . . . . . . . . . . . . . . . . . . . . Retrieved Matter . | . . . . . . . . . . . . . . . . . . . . . . . . . . Retrieved Components 3 | . . . . . . . 1 . . . . . . . . . . . 2 . . . . . . Parts Scanalyzed 2 | . . . . . 1 . . . . . . 1 . . . . . . . . . . . . . Part Schematics Acquired 2 | . . . . . 1 . . . . . . 1 . . . . . . . . . . . . . Parts Damaged . | . . . . . . . . . . . . . . . . . . . . . . . . . . Bothacking | -11 -10 -10 -7 -7 -5 -5 -5 -5 -5 -5 -5 -4 -4 -4 -4 -4 -4 -3 -3 -3 -2 -2 -2 -1 -1 ------------ Run | Yrd Mat Sub Rec Scr Fac Was Fac Ext Cet Arc Hub Fac Was Fac Upp Upp War Pro Res Tes Res Qua Frg Acc Com Used RIF Installer . | . . . . . . . . . . . . . . . . . . . . . . . . . . Robots Hacked 21 | . . . . . 1 . . . . . . . . . . . . . . 13 . . 7 . . Non-combat 2 | . . . . . 1 . . . . . . . . . . . . . . 1 . . . . . Combat 1 | . . . . . . . . . . . . . . . . . . . . 1 . . . . . Robot Hacks Applied 5 | . . . . . 1 . . . . . . . . . . . . . . 4 . . . . . parse_system 2 | . . . . . . . . . . . . . . . . . . . . 2 . . . . . find_chute 1 | . . . . . 1 . . . . . . . . . . . . . . . . . . . . find_fabricator 1 | . . . . . . . . . . . . . . . . . . . . 1 . . . . . find_scanalyzer 1 | . . . . . . . . . . . . . . . . . . . . 1 . . . . . Manual 19 | . . . . . . . . . . . . . . . . . . . . 12 . . 7 . . Relay Couplers Released 2 | . . . . . . . . . . . 1 . . . . . . . . . . . 1 . . Machine Destruction 2 | . . . . . . . . . . . 1 . . . . . . . . . . . 1 . . Fabnet Peak Effective % . | . . . . . . . . . . . . . . . . . . . . . . . . . . Robots Rewired 12 | . . . . . . . . 7 . . . . . . . . 5 . . . . . . . . Allies Hacked 6 | . . . . . 4 . 1 . . . . . . . . . . . . 1 . . . . . Hacks Repelled 1 | . . . . . 1 . . . . . . . . . . . . . . . . . . . . Allies | -11 -10 -10 -7 -7 -5 -5 -5 -5 -5 -5 -5 -4 -4 -4 -4 -4 -4 -3 -3 -3 -2 -2 -2 -1 -1 -------- Run | Yrd Mat Sub Rec Scr Fac Was Fac Ext Cet Arc Hub Fac Was Fac Upp Upp War Pro Res Tes Res Qua Frg Acc Com Total Allies 91 | . . . . . 19 19 7 22 5 . 1 . . 6 . . 5 . 1 1 1 2 2 . . Largest Group 19 | . . . . . 5 19 10 17 19 12 8 1 . 4 . . 5 3 1 1 1 1 1 . . Highest-Rated Group 815 | . . . . . 50 702 385 450 815 656 400 96 . 40 . . 281 164 36 45 10 26 45 . . Highest-Rated Ally 159 | . . . . . 26 50 46 159 143 143 96 96 . 10 . . 68 68 36 45 10 26 45 . . Total Orders 25 | . . . . . 2 . . . 1 . 3 4 . . . . 2 . 2 1 . 2 2 . 6 STAY 14 | . . . . . 1 . . . 1 . 3 3 . . . . 1 . 1 1 . 1 2 . . FOLLOW 5 | . . . . . 1 . . . . . . 1 . . . . 1 . 1 . . 1 . . . RETURN 6 | . . . . . . . . . . . . . . . . . . . . . . . . . 6 Ally Attacks 842 | . . . . . 141 149 114 155 90 48 81 . . 22 . . 13 18 . . . . . . 11 Total Damage 21416 | . . . . . 1616 5399 2060 2074 1522 1847 3501 . . 277 . . 959 847 . . . . . . 1314 Kills 135 | . . . . . 21 11 26 22 10 5 19 . . 9 . . 7 5 . . . . . . . Allies Corrupted 8 | . . . . . 7 . . . . . . . . . . . . . . 1 . . . . . Allies Melted 3 | . . . . . 1 . . . . . . . . . . . . . . . . . 2 . . Intel | -11 -10 -10 -7 -7 -5 -5 -5 -5 -5 -5 -5 -4 -4 -4 -4 -4 -4 -3 -3 -3 -2 -2 -2 -1 -1 ------- Run | Yrd Mat Sub Rec Scr Fac Was Fac Ext Cet Arc Hub Fac Was Fac Upp Upp War Pro Res Tes Res Qua Frg Acc Com Active Infowar (turns) 24504 | 56 64 4083 1060 2437 1623 189 779 813 323 600 812 953 21 772 476 201 686 152 83 879 215 529 5965 676 57 Optics 13942 | . . . . . 790 189 779 813 323 600 812 953 21 772 476 201 686 152 83 879 215 529 4669 . . Sensors 9699 | . . . . . 1620 189 779 813 323 600 812 953 21 710 476 201 597 152 83 879 215 276 . . . A.S.S. 3707 | . . . . . . . . . . . . . . . . . . . . . . . 2974 676 57 Seismic 16575 | 56 64 4083 1060 2437 1622 189 779 813 320 355 812 943 21 772 470 201 686 152 83 657 . . . . . Machine Analysis 9692 | . . . . . 1527 189 779 813 323 600 812 953 21 772 476 201 686 152 83 879 215 211 . . . Cloaking 747 | . . . . . . . . . . . . . . . . . . . . . . . 37 656 54 Jamming 3275 | . . . . . . . . . . 1 29 570 21 369 101 107 417 73 60 655 140 461 271 . . ECM 1006 | . . . . . 56 . . . . . . 180 . 303 . 13 . . 1 26 91 307 29 . . Robot Analysis Total 4 | . . . . . . . 1 1 . . . . . 1 . . . . . . . . 1 . . Derelict Logs Recovered 7 | . . 1 . 3 . . . . . . . . . . 2 1 . . . . . . . . . Drone Launches 12 | . . . . . . . . . . . . . . . . . . . . . . . . . 12 Drone Recoveries 11 | . . . . . . . . . . . . . . . . . . . . . . . . . 11 Exploration | -11 -10 -10 -7 -7 -5 -5 -5 -5 -5 -5 -5 -4 -4 -4 -4 -4 -4 -3 -3 -3 -2 -2 -2 -1 -1 ------------- Run | Yrd Mat Sub Rec Scr Fac Was Fac Ext Cet Arc Hub Fac Was Fac Upp Upp War Pro Res Tes Res Qua Frg Acc Com Turns Passed 26334 | 80 64 4083 1060 3985 1633 189 779 813 323 600 812 953 21 772 476 201 686 152 83 879 215 529 5965 676 305 Spaces Moved 33019 | 23 47 2021 643 2151 2460 187 1229 881 259 205 964 1663 59 1280 730 367 966 383 163 1492 568 997 11711 1281 289 Core . | . . . . . . . . . . . . . . . . . . . . . . . . . . Treads 2262 | . . 1587 48 627 . . . . . . . . . . . . . . . . . . . . . Legs 504 | 23 47 434 . . . . . . . . . . . . . . . . . . . . . . . Wheels 2119 | . . . 595 1524 . . . . . . . . . . . . . . . . . . . . . Hover 4576 | . . . . . . . . . . . . . . . . . . . . . . . 3006 1281 289 Flight 23558 | . . . . . 2460 187 1229 881 259 205 964 1663 59 1280 730 367 966 383 163 1492 568 997 8705 . . Fastest Speed 16 | 120 120 120 150 150 37 37 37 37 37 37 37 35 35 28 32 28 32 32 28 32 21 16 16 32 32 Average Speed 49 | 120 120 151 156 183 37 37 37 37 37 37 37 35 35 33 32 31 32 32 31 32 27 24 23 32 36 Slowest Speed 320 | 120 120 160 320 245 97 37 97 37 37 80 97 35 35 35 32 32 86 32 32 95 28 28 88 32 180 Overloaded Moves 334 | . . . . . . . . . . . . . . 12 . 11 . . 10 . 28 18 255 . . Propulsion Burnouts . | . . . . . . . . . . . . . . . . . . . . . . . . . . Robots Hopped 106 | . . . . . 13 . 8 9 . 1 7 6 . 5 1 2 . . 1 2 7 2 42 . . Potential Cave-ins 2 | . . . . . . . . . . . . . . . . . . . . . . . . 2 . Cave-ins Triggered . | . . . . . . . . . . . . . . . . . . . . . . . . . . Teleports 1 | . . . . . . . . . . . . . . . . . . . . . . . 1 . . Exploration Rate (%) 58 | 4 15 70 93 87 54 80 34 82 75 85 67 46 75 48 78 55 87 50 7 80 18 87 86 42 10 Regions Visited 25 Branch Regions 15 Pre-discovered Areas 9 | . 1 2 4 . 1 . . . . . . 1 . . . . . . . . . . . . . Known Exits Taken 16 | . . . . . . . 1 1 1 1 1 . . 1 1 1 1 1 1 1 1 1 1 1 . Unknown Exits Taken 5 | 1 1 1 1 1 . . . . . . . . . . . . . . . . . . . . . Scrap Searched 19 | . . 4 . 9 . . . . . . . . . . 3 2 . 1 . . . . . . . Spaces Dug 320 | . . 3 . . 78 . 19 2 . . 10 39 . 30 . 7 1 2 . 13 15 7 26 60 8 Terrain Destroyed 722 | . . 4 1 . 101 . 31 2 . . 32 39 . 37 . 9 50 2 . 18 19 7 220 82 68 Melee 221 | . . . . . 38 . 19 2 . . 10 39 . 30 . 4 1 2 . 13 13 7 4 35 4 Projectile 176 | . . 4 1 . . . . . . . . . . 7 . 5 2 . . 5 6 . 69 47 30 AOE 325 | . . . . . 63 . 12 . . . 22 . . . . . 47 . . . . . 147 . 34 Terrain Rammed . | . . . . . . . . . . . . . . . . . . . . . . . . . . Walls Destroyed . | . . . . . . . . . . . . . . . . . . . . . . . . . . Machines Disabled . | . . . . . . . . . . . . . . . . . . . . . . . . . . Actions | -11 -10 -10 -7 -7 -5 -5 -5 -5 -5 -5 -5 -4 -4 -4 -4 -4 -4 -3 -3 -3 -2 -2 -2 -1 -1 --------- Run | Yrd Mat Sub Rec Scr Fac Was Fac Ext Cet Arc Hub Fac Was Fac Upp Upp War Pro Res Tes Res Qua Frg Acc Com Total 41655 | 57 54 2993 680 2189 3009 306 1474 1337 485 710 1366 1943 58 1543 970 436 1304 408 190 1827 589 1224 14625 1440 438 Wait 6506 | 23 5 896 2 1 323 115 177 375 220 476 370 182 . 189 236 61 250 24 20 213 5 168 2068 71 36 Move 32813 | 22 46 2020 642 2150 2435 186 1212 862 258 202 952 1651 58 1270 727 362 965 382 161 1487 554 992 11648 1280 289 Hop 77 | . . . . . 12 . 8 9 . 1 4 6 . 4 1 2 . . . 2 6 2 20 . . Pick Up 194 | 1 . 7 14 12 14 1 6 1 . 1 1 3 . 4 . . 4 . 2 6 1 8 100 4 4 Fast Attach 105 | 1 . 2 2 . 10 2 1 . 4 8 3 4 . 4 3 . 9 . 1 15 . 8 28 . . Attach 162 | . . 3 2 4 22 . 4 1 . 1 . 3 . 4 . . 4 . 2 2 1 2 86 3 18 Detach 142 | . . 3 2 4 14 . 1 1 . 3 1 1 . 1 . . 7 . 1 2 . 3 90 3 5 Swap 164 | . . 4 2 4 25 . 16 10 . . 5 15 . 9 . 2 5 . . 11 1 2 38 8 7 Drop 234 | . . 13 4 13 18 2 4 . 3 5 1 3 . 7 3 . 12 . 1 21 . 12 104 4 4 Fire 481 | 10 . 45 7 . 10 . 2 . . . 4 . . 7 . 5 38 . . 6 6 . 241 29 71 Melee 517 | . . . . . 125 . 41 10 . 13 21 47 . 44 . 4 1 2 2 62 15 27 61 38 4 Ram . | . . . . . . . . . . . . . . . . . . . . . . . . . . Kick 3 | . 3 . . . . . . . . . . . . . . . . . . . . . . . . Crush 3 | . . . 3 . . . . . . . . . . . . . . . . . . . . . . Escape Stasis 156 | . . . . . . . . 36 . . . 22 . . . . . . . . . . 98 . . Rewire 44 | . . . . . . . 1 31 . . . . . . . . 9 . . . . . 3 . . Trap 1 | . . . . 1 . . . . . . . . . . . . . . . . . . . . . Miscellaneous 53 | . . . . . 1 . 1 1 . . 4 6 . . . . . . . . . . 40 . . Route ------- -11/Scrapyard -10/Materials (discovered 2 exits: [*Min] / *Sub) -10/Subcaves (discovered 3 exits: [*Mat] / *Rec / *Scr) -7/Recycling (discovered 2 exits: *Fac / *Scr) -7/Scraptown (discovered 2 exits: *Fac x2) -5/Factory (discovered 5 exits: *Fac / Upp x2 / Ext x2) -5/Waste -5/Factory (discovered 6 exits: *Fac x2 / Upp x2 / *Ext x2) -5/Extension (discovered 2 exits: *Fac / *Cet) -5/Cetus (discovered 2 exits: *Fac / *Arc) -5/Archives (discovered 3 exits: *Fac / *Hub x2) -5/Hub_04(d) (discovered 4 exits: *Fac x4) -4/Factory (discovered 6 exits: *Res x4 / *Upp x2) -4/Waste -4/Factory (discovered 6 exits: Res x4 / *Upp x2) -4/Upper Caves -4/Upper Caves -4/Warlord -3/Proximity Caves -3/Research (discovered 2 exits: Arm / *Tes) -3/Testing -2/Research (discovered 3 exits: Acc / *Qua x2) -2/Quarantine (discovered 3 exits: *Acc / *Sec / *Frg) -2/Protoforge -1/Access (discovered 2 exits: Sur / *Com) -1/Command History --------- Turn | Location | Event 13 | -11/Scrapyard | Discovered new exit (range 3) 81 | -11/Scrapyard | Entered Materials 82 | -10/Materials | Met a group of wandering Federalists 115 | -10/Materials | Discovered new exit (range 15) 129 | -10/Materials | Discovered new exit (range 9) 145 | -10/Materials | Entered Subcaves 146 | -10/Subcaves | Continued accompanying wandering Federalists (4) 146 | -10/Subcaves | Approached by a straggling Scientist 183 | -10/Subcaves | Discovered new exit (range 14) 322 | -10/Subcaves | Build established: Mutant 384 | -10/Subcaves | Ambushed by angry Subdweller bent on revenge 423 | -10/Subcaves | Wandering Federalist uncovered a shortcut to Scraptown 464 | -10/Subcaves | A swath of the cavern ceiling suddenly collapsed 521 | -10/Subcaves | Shifting Twisted Machinery released Mak. Light Armor Plating 523 | -10/Subcaves | Shifting Twisted Machinery released Sub. Machine Gun 636 | -10/Subcaves | Shifting Twisted Machinery released Flamer 649 | -10/Subcaves | Shifting Twisted Machinery released Mak. Kinetic Plating 649 | -10/Subcaves | Shifting Twisted Machinery released Battle Cannon 752 | -10/Subcaves | Core integrity fell below 50% 997 | -10/Subcaves | Learned 2 Materials zone layouts 1025 | -10/Subcaves | Shifting Twisted Machinery released Battle Cannon 1127 | -10/Subcaves | A swath of the cavern ceiling suddenly collapsed 1637 | -10/Subcaves | Visited Clippyterm 1641 | -10/Subcaves | Learned location of Extension (-5) 1641 | -10/Subcaves | Learned Factory stockpile data 2070 | -10/Subcaves | Discovered new exit (range 8) 2849 | -10/Subcaves | Learned location of Zion (-7) 2849 | -10/Subcaves | Met a Zionite searching for "candidates" 3094 | -10/Subcaves | Visited 4L-MR0's lab 3398 | -10/Subcaves | Found Flightbrick 4228 | -10/Subcaves | Entered Recycling 4529 | -7/Recycling | Discovered new exit (range 16) 5089 | -7/Recycling | Scanned before Scraplab entrance 5269 | -7/Recycling | Entered Scraplab 5284 | -7/Recycling | Discovered new exit (range 3) 5288 | -7/Recycling | Entered Scraptown 5427 | -7/Scraptown | Visited UFD Registry 5427 | -7/Scraptown | Registered with UFD as "Matrixcore" 5447 | -7/Scraptown | Visited Cave Peace 5457 | -7/Scraptown | Visited IN-MT5's Study 5554 | -7/Scraptown | Heard Great Nut preacher, LISTEN AND RECITE! 5627 | -7/Scraptown | Discovered new exit (range 13) 5714 | -7/Scraptown | Scanned Subdweller tech in exchange for log data 5721 | -7/Scraptown | Learned Research security intel 5722 | -7/Scraptown | Learned Research emergency access door positions 5772 | -7/Scraptown | Visited Bundlers 5869 | -7/Scraptown | Visited The Evicted 5882 | -7/Scraptown | Visited Awakened 5899 | -7/Scraptown | Visited SPCMW 6432 | -7/Scraptown | Visited Junk Repository 6481 | -7/Scraptown | Visited Scrapoid Research Area 6518 | -7/Scraptown | Visited Chapter 10 6551 | -7/Scraptown | Visited Science Guys 6597 | -7/Scraptown | Visited Scrap Suit Storage 6620 | -7/Scraptown | Visited Research Penetration Think Tank 6656 | -7/Scraptown | Visited Science Testing Area 6676 | -7/Scraptown | Visited Supply Room 6699 | -7/Scraptown | Visited Sword Containment 6756 | -7/Scraptown | Visited Curators Association 7356 | -7/Scraptown | Delivered Scrap Shield to a Scientist 7730 | -7/Scraptown | Warned about trapping Scraptown 8138 | -7/Scraptown | System corruption cleaned by C-Scrubber 9014 | -7/Scraptown | Discovered new exit (range 3) 9151 | -7/Scraptown | Met Optimus 9151 | -7/Scraptown | Accepted into 0bPrime 9273 | -7/Scraptown | Entered Factory 9273 | -5/Factory | Evolved 10 slots: Propulsion x4, Utility x6 9274 | -5/Factory | Attached Flightbrick, gained temporary slots: Utility x3 9576 | -5/Factory | Build established: Scavenger-Mutant 9668 | -5/Factory | Fabricated IN-MT5's Pitchfork "Insurrection" (x1) 9860 | -5/Factory | Reprogrammed and armed K-01 Serf 9861 | -5/Factory | Reprogrammed and armed K-01 Serf 9862 | -5/Factory | Reprogrammed and armed K-01 Serf 9974 | -5/Factory | Identified exit to Upper Caves 9974 | -5/Factory | Identified exit to Extension 9986 | -5/Factory | Reprogrammed and armed K-01 Serf 9989 | -5/Factory | Reprogrammed and armed K-01 Serf 9999 | -5/Factory | Reprogrammed and armed K-01 Serf 10020 | -5/Factory | Build established: Scout 10025 | -5/Factory | Reprogrammed and armed K-01 Serf 10030 | -5/Factory | Reprogrammed and armed K-01 Serf 10086 | -5/Factory | Reprogrammed and armed K-01 Serf 10089 | -5/Factory | Reprogrammed and armed K-01 Serf 10111 | -5/Factory | Garrison activated, responded to threat 10129 | -5/Factory | Cargo convoy interrupted 10172 | -5/Factory | Lost 4 allies 10212 | -5/Factory | Loaded intel: 8 recycling unit locations 10395 | -5/Factory | Reprogrammed and armed K-01 Serf 10424 | -5/Factory | Reprogrammed and armed K-01 Serf 10431 | -5/Factory | Reprogrammed and armed K-01 Serf 10461 | -5/Factory | Reprogrammed and armed K-01 Serf 10461 | -5/Factory | Reprogrammed and armed K-01 Serf 10656 | -5/Factory | Lost 3 allies 10706 | -5/Factory | Fabricated IN-MT5's Pitchfork "Insurrection" (x1) 10744 | -5/Factory | Reprogrammed and armed K-01 Serf 10748 | -5/Factory | Reprogrammed and armed K-01 Serf 10748 | -5/Factory | Reprogrammed and armed K-01 Serf 10754 | -5/Factory | Imp. System Shield fried by hacking feedback 10773 | -5/Factory | First assault squad dispatched 10797 | -5/Factory | Learned location of Protoforge (-2) 10906 | -5/Factory | Discovered new exit (range 8) 10906 | -5/Factory | Sucked down chute 10906 | -5/Factory | Entered Waste 10913 | -5/Waste | Spotted C-40 Crusher 10915 | -5/Waste | Spotted C-40 Crusher 10917 | -5/Waste | Spotted C-40 Crusher 10921 | -5/Waste | Spotted C-40 Crusher 10925 | -5/Waste | Spotted C-40 Crusher 10925 | -5/Waste | Spotted C-40 Crusher 10937 | -5/Waste | Warlord forces began an assault 10965 | -5/Waste | Allies destroyed C-40 Crusher 10986 | -5/Waste | Allies destroyed C-40 Crusher 10996 | -5/Waste | Allies destroyed C-40 Crusher 11003 | -5/Waste | Allies destroyed C-40 Crusher 11032 | -5/Waste | Lost 5 allies 11038 | -5/Waste | Discovered new exit (range 13) 11042 | -5/Waste | Identified exit to Factory 11095 | -5/Waste | Entered Factory 11095 | -5/Factory | Accompanied by 10 allies 11146 | -5/Factory | Build established: Hacker-Scout 11268 | -5/Factory | Loaded intel: 8 recycling unit locations 11273 | -5/Factory | Reprogrammed and armed K-01 Serf 11335 | -5/Factory | Discovered new exit (range 8) 11337 | -5/Factory | Identified exit to Factory 11537 | -5/Factory | Fabricated IN-MT5's Pitchfork "Insurrection" (x1) 11555 | -5/Factory | Reprogrammed and armed K-01 Serf 11670 | -5/Factory | Allied Derelicts emerged from ambush trap array 11681 | -5/Factory | Reprogrammed and armed K-01 Serf 11682 | -5/Factory | Reprogrammed and armed K-01 Serf 11689 | -5/Factory | Cargo convoy interrupted 11720 | -5/Factory | Reprogrammed and armed K-01 Serf 11736 | -5/Factory | Reprogrammed and armed K-01 Serf 11781 | -5/Factory | Reprogrammed and armed K-01 Serf 11833 | -5/Factory | Discovered exit to Factory (range 18) 11874 | -5/Factory | Entered Extension 11876 | -5/Extension | Lost 6 allies 11899 | -5/Extension | Reprogrammed and armed K-01 Serf 11963 | -5/Extension | Reprogrammed and armed K-01 Serf 11966 | -5/Extension | Reprogrammed and armed K-01 Serf 11966 | -5/Extension | Reprogrammed and armed K-01 Serf 12051 | -5/Extension | Repaired Hvy. Rocket Launcher 12103 | -5/Extension | Reprogrammed and armed K-01 Serf 12103 | -5/Extension | Reprogrammed and armed K-01 Serf 12112 | -5/Extension | Reprogrammed and armed K-01 Serf 12118 | -5/Extension | Reprogrammed and armed K-01 Serf 12118 | -5/Extension | Reprogrammed and armed K-01 Serf 12176 | -5/Extension | Spotted B-75 Beast 12207 | -5/Extension | Allies destroyed B-75 Beast 12208 | -5/Extension | Spotted B-75 Beast 12230 | -5/Extension | Allies destroyed B-75 Beast 12244 | -5/Extension | Rescued a captive Derelict 12333 | -5/Extension | Rescued a captive Derelict 12334 | -5/Extension | Rescued a captive Derelict 12442 | -5/Extension | Rescued A7 12480 | -5/Extension | System corruption reached 10% 12485 | -5/Extension | Central database locked down 12623 | -5/Extension | Discovered exit to Factory (range 10) 12623 | -5/Extension | Discovered new exit (range 6) 12631 | -5/Extension | Reprogrammed and armed K-01 Serf 12647 | -5/Extension | Reprogrammed and armed K-01 Serf 12653 | -5/Extension | Identified exit to Cetus 12687 | -5/Extension | Entered Cetus 12687 | -5/Cetus | Accompanied by 17 allies (A7) 12692 | -5/Cetus | Acquired a Cetus Manufacturing Module code from A7 12709 | -5/Cetus | Spotted Cetus Guard 12716 | -5/Cetus | Spotted Cetus Guard 12717 | -5/Cetus | Allies destroyed Cetus Guard 12717 | -5/Cetus | Spotted Cetus Guard 12723 | -5/Cetus | Spotted Cetus Guard 12728 | -5/Cetus | Allies destroyed Cetus Guard 12739 | -5/Cetus | Allies destroyed Cetus Guard 12743 | -5/Cetus | Allies destroyed Cetus Guard 12768 | -5/Cetus | Started Cetus Manufacturing Module 12793 | -5/Cetus | Manufactured an Enhanced Grunt 12818 | -5/Cetus | Manufactured an Enhanced Grunt 12820 | -5/Cetus | Escorted A7 to Cetus Mainframe 12830 | -5/Cetus | Discovered new exit (range 22) 12843 | -5/Cetus | Manufactured an Enhanced Grunt 12868 | -5/Cetus | Manufactured an Enhanced Grunt 12873 | -5/Cetus | Spotted Cetus Guard 12873 | -5/Cetus | Spotted Cetus Guard 12879 | -5/Cetus | Spotted Cetus Guard 12893 | -5/Cetus | Manufactured an Enhanced Grunt 12906 | -5/Cetus | Allies destroyed Cetus Guard 12906 | -5/Cetus | Allies destroyed Cetus Guard 12914 | -5/Cetus | Allies destroyed Cetus Guard 12927 | -5/Cetus | Identified exit to Archives 12938 | -5/Cetus | Lost 8 allies 12980 | -5/Cetus | Discovered exit to Factory (range 21) 12985 | -5/Cetus | Met Revision 17 13010 | -5/Cetus | Entered Archives 13010 | -5/Archives | Accompanied by 12 allies (A7) 13015 | -5/Archives | Received a hacking code to weaken MAIN.C 13064 | -5/Archives | Discovered new exit (range 20) 13068 | -5/Archives | Discovered new exit (range 21) 13086 | -5/Archives | Discovered exit to Factory (range 22) 13091 | -5/Archives | Lost 3 allies 13397 | -5/Archives | Identified exit to Hub_04(d) 13610 | -5/Archives | Entered Hub_04(d) 13610 | -5/Hub_04(d) | Accompanied by 7 allies 13639 | -5/Hub_04(d) | Build established: Hacker-Ninja 14058 | -5/Hub_04(d) | Network Hub disabled 14269 | -5/Hub_04(d) | Network Hub disabled 14367 | -5/Hub_04(d) | Network Hub disabled 14422 | -5/Hub_04(d) | Entered Factory 14422 | -4/Factory | Accompanied by 1 ally 14422 | -4/Factory | Evolved 2 slots: Power x1, Propulsion x1 14429 | -4/Factory | Identified exit to Upper Caves 14703 | -4/Factory | Loaded intel: 8 recycling unit locations 14909 | -4/Factory | Discovered new exit (range 9) 14916 | -4/Factory | Identified exit to Research 15102 | -4/Factory | Spotted B-86 Titan 15182 | -4/Factory | Learned Armory non-interactive machine intel 15217 | -4/Factory | Learned Research stockpile data 15240 | -4/Factory | Learned Quarantine emergency access door positions 15251 | -4/Factory | Learned location of 1 exit from Research 15256 | -4/Factory | Learned location of 1 exit from Quarantine 15257 | -4/Factory | Learned 2 Armory zone layouts 15276 | -4/Factory | Learned location of Testing (-3) 15302 | -4/Factory | Loaded intel: 26 terminal locations 15375 | -4/Factory | Manually triggered Chute Trap 15375 | -4/Factory | Sucked down chute 15375 | -4/Factory | Entered Waste 15378 | -4/Waste | Spotted C-40 Crusher 15387 | -4/Waste | Spotted C-40 Crusher 15388 | -4/Waste | Spotted C-40 Crusher 15388 | -4/Waste | Discovered new exit (range 22) 15389 | -4/Waste | Spotted C-40 Crusher 15390 | -4/Waste | EMP discharged 15390 | -4/Waste | Spotted C-40 Crusher 15391 | -4/Waste | Spotted C-40 Crusher 15395 | -4/Waste | Identified exit to Factory 15396 | -4/Waste | Entered Factory 15442 | -4/Factory | Spotted B-86 Titan 15454 | -4/Factory | Loaded intel: 8 recycling unit locations 15546 | -4/Factory | Reprogrammed and armed K-01 Serf 15549 | -4/Factory | Reprogrammed and armed K-01 Serf 15605 | -4/Factory | Reprogrammed and armed K-01 Serf 15606 | -4/Factory | Reprogrammed and armed K-01 Serf 15665 | -4/Factory | Reprogrammed and armed K-01 Serf 15759 | -4/Factory | Fabricated Cld. Nuclear Pulse Thruster? 15814 | -4/Factory | Fabricated IN-MT5's Pitchfork "Insurrection"? 15860 | -4/Factory | Fabricated Cld. Nuclear Pulse Thruster (x1) 15914 | -4/Factory | Lost 3 allies 16114 | -4/Factory | Learned Quarantine machine intel 16157 | -4/Factory | Learned 2 Proximity Caves zone layouts 16168 | -4/Factory | Entered Upper Caves 16170 | -4/Upper Caves | UFD Scientist delivered a prototype 16172 | -4/Upper Caves | Found Prototype Protection 16172 | -4/Upper Caves | Identified Enh. Scrap Shield 16191 | -4/Upper Caves | Encountered a Warlord checkpoint 16356 | -4/Upper Caves | Spotted B-86 Titan 16589 | -4/Upper Caves | Discovered new exit (range 4) 16590 | -4/Upper Caves | Identified exit to Upper Caves 16598 | -4/Upper Caves | Learned Research interactive machine intel 16644 | -4/Upper Caves | Entered another Upper Caves area 16669 | -4/Upper Caves | Attracted the attention of an 0b10 outpost 16789 | -4/Upper Caves | Learned Research garrison access intel 16798 | -4/Upper Caves | Discovered new exit (range 8) 16801 | -4/Upper Caves | Identified exit to Warlord 16845 | -4/Upper Caves | Entered Warlord 16856 | -4/Warlord | System corruption cleaned by Quarantine Array 16983 | -4/Warlord | Received a Watcher feed algorithm from an ecstatic Tinkerer 17000 | -4/Warlord | Rebuked by Warlord 17025 | -4/Warlord | Warlord's base attacked by MAIN.C 17067 | -4/Warlord | Found Prototype Energy Gun 17067 | -4/Warlord | Identified Vortex Rifle 17108 | -4/Warlord | Found Prototype Hackware 17108 | -4/Warlord | Identified Ghost Barrier 17113 | -4/Warlord | Found Prototype Device 17113 | -4/Warlord | Identified Thermal Barrier 17162 | -4/Warlord | Spotted B-90 Cyclops 17174 | -4/Warlord | Spotted B-86 Titan 17375 | -4/Warlord | Warlord forces counterattacked 17391 | -4/Warlord | Spotted Striker 17407 | -4/Warlord | Spotted Striker 17426 | -4/Warlord | Allies destroyed Striker 17457 | -4/Warlord | Spotted Striker 17463 | -4/Warlord | Spotted Striker 17468 | -4/Warlord | Allies destroyed Striker 17475 | -4/Warlord | Spotted Striker 17497 | -4/Warlord | Discovered new exit (range 14) 17501 | -4/Warlord | Identified exit to Proximity Caves 17519 | -4/Warlord | Lost 13 allies 17531 | -4/Warlord | Entered Proximity Caves 17531 | -3/Proximity Caves | Accompanied by 3 allies 17658 | -3/Proximity Caves | Discovered exit to Research (range 11) 17683 | -3/Proximity Caves | Entered Research 17683 | -3/Research | Evolved 2 slots: Utility x2 17684 | -3/Research | Identified exit to Armory 17685 | -3/Research | Identified exit to Testing 17689 | -3/Research | Loaded intel: 44 interactive machine locations 17690 | -3/Research | Loaded intel: 4 garrison access locations 17712 | -3/Research | Loaded intel: 5 recycling unit locations 17766 | -3/Research | Entered Testing 17781 | -3/Testing | Found Prototype Device 17781 | -3/Testing | Identified AEGIS Remote Shield 17798 | -3/Testing | Found Prototype Energy Gun 17798 | -3/Testing | Identified Warp Gun 17933 | -3/Testing | Found Prototype Ballistic Cannon 17933 | -3/Testing | Identified Omega Cannon 18067 | -3/Testing | Found Prototype Energy Cannon 18067 | -3/Testing | Identified Cld. Nova Cannon 18184 | -3/Testing | Found Prototype Hackware 18184 | -3/Testing | Identified System Mapper 18190 | -3/Testing | Learned Quarantine security intel 18256 | -3/Testing | Identified exit to Research 18312 | -3/Testing | Learned Quarantine interactive machine intel 18360 | -3/Testing | Loaded intel: 7 trap records 18425 | -3/Testing | Found Prototype Launcher 18489 | -3/Testing | Build established: Wizard-Ninja 18497 | -3/Testing | Learned 4 Research zone layouts 18521 | -3/Testing | Found Prototype Energy Gun 18521 | -3/Testing | Identified Tachyon Dispersion Ray 18645 | -3/Testing | Entered Research 18645 | -2/Research | Evolved 2 slots: Propulsion x1, Utility x1 18646 | -2/Research | Identified exit to Access 18695 | -2/Research | Identified Z-bomb Delivery System 18718 | -2/Research | Loaded intel: 5 recycling unit locations 18730 | -2/Research | Identified exit to Quarantine 18860 | -2/Research | Entered Quarantine 18861 | -2/Quarantine | Identified exit to Protoforge 18863 | -2/Quarantine | Loaded intel: 71 machine locations 18864 | -2/Quarantine | Loaded intel: 19 interactive machine locations 18871 | -2/Quarantine | Found Alien Slashing Weapon 18871 | -2/Quarantine | Identified Sigix Broadsword 18902 | -2/Quarantine | Found Alien Artifact 19161 | -2/Quarantine | Found Alien Artifact 19164 | -2/Quarantine | Found Alien Artifact 19224 | -2/Quarantine | Repaired Lyr. Light Armor Plating 19260 | -2/Quarantine | Repaired Impulse Thruster Array 19339 | -2/Quarantine | Repaired Broken Cld. Nuclear Pulse Thruster 19355 | -2/Quarantine | Discovered exit to Access (range 4) 19370 | -2/Quarantine | Spotted Fortress 19386 | -2/Quarantine | Discovered new exit (range 6) 19388 | -2/Quarantine | Identified exit to Section 7 19389 | -2/Quarantine | Entered Protoforge 19403 | -2/Protoforge | Spotted Hotshot 19443 | -2/Protoforge | Spotted B-90 Cyclops 19466 | -2/Protoforge | Spotted Hotshot 19466 | -2/Protoforge | Spotted Hotshot 19467 | -2/Protoforge | Superfortress began startup sequence 19550 | -2/Protoforge | Build established: Hacker-Sprinter 19555 | -2/Protoforge | Spotted EXE-6 19555 | -2/Protoforge | Spotted EXE-6 19565 | -2/Protoforge | UFD initiated attack on Protoforge 19565 | -2/Protoforge | Loaded intel: 3 recycling unit locations 19601 | -2/Protoforge | Optimus greeted in Protoforge 19613 | -2/Protoforge | Identified Dimensional Node Initializer 19613 | -2/Protoforge | Initialized slip node 19620 | -2/Protoforge | Identified Subatomic Replicator 19620 | -2/Protoforge | Used Subatomic Replicator to create Alien Artifact 19634 | -2/Protoforge | Identified Supercharged TR 19634 | -2/Protoforge | Warped through subspace to slip node 19643 | -2/Protoforge | Spotted Hotshot 19644 | -2/Protoforge | Optimus attacked Superfortress 19655 | -2/Protoforge | Found Prototype Processor 19655 | -2/Protoforge | Identified Exp. Targeting Computer 19657 | -2/Protoforge | Found Prototype Processor 19657 | -2/Protoforge | Identified Exp. Core Analyzer 19661 | -2/Protoforge | Spotted SKR-2 19661 | -2/Protoforge | Spotted SKR-2 19661 | -2/Protoforge | Spotted SKR-2 19674 | -2/Protoforge | Spotted EXE-6 19678 | -2/Protoforge | Lost 22 allies 19692 | -2/Protoforge | Spotted EXE-6 19717 | -2/Protoforge | Met 7R-MNS 19752 | -2/Protoforge | Forge Plexus network access discovered 19763 | -2/Protoforge | Spotted AP7-3 19764 | -2/Protoforge | Spotted AP7-3 19791 | -2/Protoforge | Spotted Executioner 19791 | -2/Protoforge | Spotted Striker 19801 | -2/Protoforge | Spotted Striker 19807 | -2/Protoforge | Spotted Striker 19810 | -2/Protoforge | Lost 4 allies 19824 | -2/Protoforge | Spotted Executioner 19840 | -2/Protoforge | Found Exp. System Purifier 19909 | -2/Protoforge | Spotted Hotshot 19911 | -2/Protoforge | Spotted Hotshot 19927 | -2/Protoforge | Spotted Executioner 19929 | -2/Protoforge | Spotted Striker 19963 | -2/Protoforge | Spotted Executioner 19975 | -2/Protoforge | Lost 7 allies 19979 | -2/Protoforge | Spotted Striker 19981 | -2/Protoforge | Spotted Striker 20016 | -2/Protoforge | Spotted Striker 20017 | -2/Protoforge | Spotted Executioner 20020 | -2/Protoforge | Destroyed Striker 20022 | -2/Protoforge | Destroyed Executioner 20059 | -2/Protoforge | Lost 3 allies 20072 | -2/Protoforge | Spotted Executioner 20079 | -2/Protoforge | Spotted Executioner 20081 | -2/Protoforge | P-80 Master assimilated allied 02F79-D 20101 | -2/Protoforge | Destroyed Executioner 20122 | -2/Protoforge | Destroyed 9 combat bots 20260 | -2/Protoforge | Build established: Scavenger-Sprinter 20260 | -2/Protoforge | Spotted Decapitator 20260 | -2/Protoforge | Spotted V011-c 20312 | -2/Protoforge | Spotted Immortal 20312 | -2/Protoforge | Spotted Immortal 20355 | -2/Protoforge | Destroyed Immortal 20373 | -2/Protoforge | Destroyed Immortal 20380 | -2/Protoforge | Found Crosscalibrator 20384 | -2/Protoforge | Spotted Decapitator 20384 | -2/Protoforge | Spotted Decapitator 20384 | -2/Protoforge | Spotted Decapitator 20384 | -2/Protoforge | Spotted Decapitator 20462 | -2/Protoforge | Found Faulty Cep. Fieldthrust Drive 20464 | -2/Protoforge | Found Cep. Fieldthrust Drive 20508 | -2/Protoforge | Found Prototype Protection 20512 | -2/Protoforge | Identified Centrium Heavy Armor Plating 20584 | -2/Protoforge | Destroyed Decapitator 20584 | -2/Protoforge | Destroyed Decapitator 20584 | -2/Protoforge | Destroyed Decapitator 20584 | -2/Protoforge | Destroyed Decapitator 20789 | -2/Protoforge | Spotted V864-o 20791 | -2/Protoforge | Spotted V135-a 20791 | -2/Protoforge | Found Mni. Quantum Capacitor 20854 | -2/Protoforge | Spotted Decapitator 20854 | -2/Protoforge | Spotted Decapitator 20854 | -2/Protoforge | Spotted Decapitator 20926 | -2/Protoforge | Destroyed Decapitator 20927 | -2/Protoforge | Destroyed Decapitator 20934 | -2/Protoforge | Destroyed Decapitator 20966 | -2/Protoforge | Found Cep. Antigrav Storage Unit 20968 | -2/Protoforge | Spotted V209-j 20986 | -2/Protoforge | Found Prototype Device 20986 | -2/Protoforge | Identified Exp. Shock Absorption System 20989 | -2/Protoforge | Found Cep. Chromion Battery 20992 | -2/Protoforge | Found Cep. NT7 Matterbank 21085 | -2/Protoforge | Spotted Executioner 21113 | -2/Protoforge | Spotted Immortal 21113 | -2/Protoforge | Spotted Immortal 21142 | -2/Protoforge | Destroyed Immortal 21156 | -2/Protoforge | Spotted V131-u 21157 | -2/Protoforge | Spotted V428-u 21157 | -2/Protoforge | Spotted V976-q 21182 | -2/Protoforge | Destroyed Immortal 21215 | -2/Protoforge | Spotted Executioner 21219 | -2/Protoforge | Destroyed Executioner 21240 | -2/Protoforge | Spotted Executioner 21249 | -2/Protoforge | Spotted Striker 21300 | -2/Protoforge | Spotted Striker 21312 | -2/Protoforge | Spotted Striker 21350 | -2/Protoforge | Lost 5 allies 21429 | -2/Protoforge | Found Cep. Arcsight Missile Launcher 21566 | -2/Protoforge | Additional patrols dispatched to research labs 21569 | -2/Protoforge | Found Transdimensional Reconstructor 21575 | -2/Protoforge | Found Cep. Nanofilaments [Conductive] 21575 | -2/Protoforge | Installed Cep. Nanofilaments [Conductive], 2 resistances modified: TH -15%, EM +25% 21671 | -2/Protoforge | Spotted V864-v 21672 | -2/Protoforge | Found Faulty Cep. Zero-point Core 21673 | -2/Protoforge | Found Faulty Cep. Zero-point Core 21675 | -2/Protoforge | Found Faulty Cep. Zero-point Core 21788 | -2/Protoforge | Found Faulty Cep. Combat Aerolev Unit 21791 | -2/Protoforge | Found Faulty Cep. Gyrokinetic System 21835 | -2/Protoforge | Found Cep. Gyrokinetic System 21851 | -2/Protoforge | Found Faulty Cep. Plasma Driver 21852 | -2/Protoforge | Found Cep. Plasma Driver 22005 | -2/Protoforge | Found Cep. Chromion Battery 22034 | -2/Protoforge | Found Cep. Weapon Articulator 22035 | -2/Protoforge | Found Faulty Mni. Quantum Capacitor 22077 | -2/Protoforge | Found Cep. Countertargeting System 22128 | -2/Protoforge | Found Cep. Plasma Driver 22174 | -2/Protoforge | Spotted Striker 22279 | -2/Protoforge | Spotted Striker 22280 | -2/Protoforge | Spotted Striker 22352 | -2/Protoforge | Spotted V170-y 22352 | -2/Protoforge | Spotted V549-b 22352 | -2/Protoforge | Spotted V977-q 22352 | -2/Protoforge | Spotted V714-l 22352 | -2/Protoforge | Found Faulty Exp. Active Sensor Suite 22354 | -2/Protoforge | Found Exp. Active Sensor Suite 22431 | -2/Protoforge | Lost 3 allies 22474 | -2/Protoforge | Spotted Striker 22481 | -2/Protoforge | Found Exp. System Purifier 22503 | -2/Protoforge | Spotted Striker 22505 | -2/Protoforge | Spotted Striker 22565 | -2/Protoforge | Found UFD Drillbomb 22595 | -2/Protoforge | Installed UFD Drillbomb at designated target 22595 | -2/Protoforge | UFD reported confirmed Drillbomb installation 22640 | -2/Protoforge | Found Cep. Networked Targeting System 22691 | -2/Protoforge | Build established: Scavenger-Scout 22811 | -2/Protoforge | Spotted Executioner 22817 | -2/Protoforge | Spotted Executioner 22846 | -2/Protoforge | Lost 5 allies 22875 | -2/Protoforge | Spotted Executioner 22900 | -2/Protoforge | Found UFD Drillbomb 22923 | -2/Protoforge | Installed UFD Drillbomb at designated target 22923 | -2/Protoforge | UFD reported confirmed Drillbomb installation 22925 | -2/Protoforge | Found UFD Drillbomb 22942 | -2/Protoforge | Installed UFD Drillbomb at designated target 22942 | -2/Protoforge | UFD reported confirmed Drillbomb installation 22943 | -2/Protoforge | Found UFD Drillbomb 22959 | -2/Protoforge | Spotted Striker 22960 | -2/Protoforge | Spotted Striker 22991 | -2/Protoforge | Spotted Executioner 23058 | -2/Protoforge | Lost 11 allies 23085 | -2/Protoforge | Installed UFD Drillbomb at designated target 23085 | -2/Protoforge | UFD reported confirmed Drillbomb installation 23150 | -2/Protoforge | Spotted Striker 23158 | -2/Protoforge | Lost 5 allies 23162 | -2/Protoforge | Spotted Executioner 23163 | -2/Protoforge | Spotted Striker 23202 | -2/Protoforge | Spotted Striker 23223 | -2/Protoforge | Spotted Executioner 23224 | -2/Protoforge | Spotted Executioner 23240 | -2/Protoforge | UFD reported confirmed Drillbomb installation 23449 | -2/Protoforge | Spotted AP7-3 23520 | -2/Protoforge | Spotted AP7-3 23549 | -2/Protoforge | Destroyed AP7-3 23567 | -2/Protoforge | Destroyed AP7-3 23692 | -2/Protoforge | Found Cep. Thermoelectric Network 23694 | -2/Protoforge | Found Cep. Cloak Mesh 23698 | -2/Protoforge | Found Cep. Cloak Mesh 23699 | -2/Protoforge | Found Cep. Impact Drone Bay 23925 | -2/Protoforge | Spotted Striker 23927 | -2/Protoforge | Spotted Executioner 24051 | -2/Protoforge | Spotted Executioner 24055 | -2/Protoforge | Destroyed Executioner 24077 | -2/Protoforge | Spotted Executioner 24084 | -2/Protoforge | Lost 4 allies 24218 | -2/Protoforge | Destroyed Hotshot 24220 | -2/Protoforge | Spotted Hotshot 24225 | -2/Protoforge | Destroyed Hotshot 24317 | -2/Protoforge | Spotted Executioner 24317 | -2/Protoforge | Destroyed Executioner 24349 | -2/Protoforge | Spotted Striker 24354 | -2/Protoforge | Destroyed Striker 24381 | -2/Protoforge | Destroyed Executioner 24395 | -2/Protoforge | Destroyed Executioner 24397 | -2/Protoforge | Spotted Striker 24397 | -2/Protoforge | Destroyed Striker 24422 | -2/Protoforge | Destroyed 11 combat bots 24443 | -2/Protoforge | Spotted Striker 24451 | -2/Protoforge | Destroyed Striker 24463 | -2/Protoforge | Spotted Executioner 24474 | -2/Protoforge | Destroyed Executioner 24518 | -2/Protoforge | UFD reported confirmed Drillbomb installation 24605 | -2/Protoforge | Found Exp. System Purifier 24933 | -2/Protoforge | Destroyed 7 combat bots 24938 | -2/Protoforge | Destroyed Striker 24955 | -2/Protoforge | Spotted Striker 24963 | -2/Protoforge | Destroyed Striker 24973 | -2/Protoforge | Lost 4 allies 25008 | -2/Protoforge | Spotted Executioner 25008 | -2/Protoforge | Destroyed Executioner 25055 | -2/Protoforge | Destroyed 13 combat bots 25076 | -2/Protoforge | Spotted Executioner 25096 | -2/Protoforge | Spotted Executioner 25096 | -2/Protoforge | Destroyed Executioner 25098 | -2/Protoforge | Spotted Executioner 25099 | -2/Protoforge | Spotted Executioner 25100 | -2/Protoforge | Destroyed Executioner 25136 | -2/Protoforge | Destroyed 7 combat bots 25144 | -2/Protoforge | Spotted Striker 25146 | -2/Protoforge | Lost 7 allies 25146 | -2/Protoforge | Destroyed Striker 25176 | -2/Protoforge | UFD reported confirmed Drillbomb installation 25204 | -2/Protoforge | UFD reported confirmed Drillbomb installation 25263 | -2/Protoforge | UFD reported confirmed Drillbomb installation 25266 | -2/Protoforge | Spotted Striker 25268 | -2/Protoforge | Destroyed Striker 25275 | -2/Protoforge | Spotted Striker 25277 | -2/Protoforge | Spotted Executioner 25288 | -2/Protoforge | Spotted Executioner 25293 | -2/Protoforge | Destroyed Executioner 25294 | -2/Protoforge | Destroyed Executioner 25312 | -2/Protoforge | Lost 4 allies 25315 | -2/Protoforge | UFD reported confirmed Drillbomb installation 25316 | -2/Protoforge | UFD began Drillbomb countdown 25347 | -2/Protoforge | Spotted Executioner 25353 | -2/Protoforge | Discovered exit to Access (range 3) 25354 | -2/Protoforge | Entered Access 25354 | -1/Access | Evolved 2 slots: Power x1, Weapon x1 25389 | -1/Access | Identified exit to Surface 25654 | -1/Access | Build established: Ninja 25705 | -1/Access | Spotted B-99 Colossus 25854 | -1/Access | First assault squad dispatched 25923 | -1/Access | Allied Derelicts emerged from ambush trap array 25944 | -1/Access | Found Hvy. Reactive Plating 25969 | -1/Access | High security lockdown imminent 26026 | -1/Access | Spotted B-99 Colossus 26026 | -1/Access | Spotted B-99 Colossus 26029 | -1/Access | Discovered new exit (range 3) 26029 | -1/Access | Identified exit to Command 26030 | -1/Access | Entered Command 26109 | -1/Command | Spotted Combat Programmer 26110 | -1/Command | Spotted Combat Programmer 26119 | -1/Command | Destroyed Combat Programmer 26128 | -1/Command | Destroyed Combat Programmer 26131 | -1/Command | Spotted M Guard 26142 | -1/Command | Spotted M Guard 26164 | -1/Command | Destroyed M Guard 26169 | -1/Command | High security lockdown imminent 26197 | -1/Command | Destroyed M Guard 26197 | -1/Command | All MAIN.C guards destroyed 26218 | -1/Command | Destroyed 12 combat bots 26223 | -1/Command | Lost 6 parts (2n3u1w) 26237 | -1/Command | Met MAIN.C 26249 | -1/Command | High security lockdown engaged 26252 | -1/Command | 0b10 Conduit disabled 26253 | -1/Command | System corruption reached 10% 26281 | -1/Command | Destroyed MAIN.C Shell 26283 | -1/Command | MAIN.C activated Command garrisons 26322 | -1/Command | Core integrity fell below 50% 26326 | -1/Command | Failed to warp due to unstable space 26330 | -1/Command | Core integrity fell below 20% 26335 | -1/Command | Destroyed by MAIN.C with Omega Cannon Last Messages --------------- 26318_ Acquired 2 matter. 26319_ System corrupted: Heat flow error (+137). 26319_ Knocked back. 26320_ Penetrated by Slug. 26322_ Cep. Zero-point Core destroyed. 26322_ Knocked back. 26324_ Penetrated by Slug. 26325_ Cep. Zero-point Core destroyed. 26325_ Knocked back. 26326_ Warp failed due to unstable space. 26327_ Penetrated by Slug. 26330_ Slug penetrates MAIN.C. 26330_ Penetrated by Slug. 26332_ Cep. Gyrokinetic System destroyed. 26332_ Knocked back. 26332_ Penetrated by Slug. 26332_ Cep. Antigrav Storage Unit destroyed. 26332_ Penetrated by Slug. 26333_ Acquired 15 matter. 26335_ Cep. Countertargeting System destroyed. Map ----- +----------------------------------------------------+ | ?????????????????????????????????????????????????? | | ?????????????????????????????????????????????????? | | ?????????????????????????????????????????????????? | | ?????????????????????????????????????????????????? | | ?????????????????????????????????????????????????? | | ?????????????????????????????????????????????????? | | ?????????????????????????????????????????????????? | | ?????????????????????????????????????????????????? | | ?????????????????????????????????????????????????? | | ?????????????????????????????????????????????????? | | ?????????????????????????????????????????????????? | | ?????????????????????????????????????????????????? | | ????????????????????????##################???????? | | ???????????????????????"""" """" #???????? | | ?????????????????????" "" #???????? | | ???????????????????#""""" "" ######### | | ???????????????????#""""""""""" / | | ???????????????????#" " """ / | | ???????????????????#"" """" / | | ???????????????????#"" " ######### | | ???????????????????# #???????? | | ???????????????????# " % %M #???????? | | ???????????????????# " ""#???????? | | ???????????????????#"" %% """"""#???????? | | ???????????????????#" % %"""""""""#???????? | | ???????????????????# !@!% %"""""""""""#???????? | | ???????????????????# %% ! % " " " " #???????? | | ???????????????????# % % " " " " #???????? | | ???????????????????"% % " " " """" " #???????? | | ???????????????????" "" " " """" #???????? | | ???????????????????" " " " ????????????? | | ???????????????????# """""""" ?????????????? | | ???????????????????# """ " ""??????????????? | | ???????????????????# """ " " ??????????????? | | ???????????????????#############?????????????????? | | ?????????????????????????????????????????????????? | | ?????????????????????????????????????????????????? | | ?????????????????????????????????????????????????? | | ?????????????????????????????????????????????????? | | ?????????????????????????????????????????????????? | | ?????????????????????????????????????????????????? | | ?????????????????????????????????????????????????? | | ?????????????????????????????????????????????????? | | ?????????????????????????????????????????????????? | | ?????????????????????????????????????????????????? | | ?????????????????????????????????????????????????? | | ?????????????????????????????????????????????????? | | ?????????????????????????????????????????????????? | | ?????????????????????????????????????????????????? | | ?????????????????????????????????????????????????? | +----------------------------------------------------+ Best States ------------- Heat Dissipation 121 Energy Generation 89 Energy Capacity 460 Matter Stores 300 Matter Capacity 300 Sight Range 23 Robot Scan Range 20 Terrain Scan Density 10 ECM Strength 1 Jamming Range 16 Cloak Strength 9 Power Amplification 30 Armor Coverage 600 Resistance: KI 40 Resistance: EM 25 Weapon Shielding 90 Point Defense Rating 240 Melee Speed Boost 20 Evasion (%) 77 Targeting Accuracy 42 Core Analysis 8 Armor Integrity Analysis 40 Recoil Reduction 2 Offensive Hacking 60 Defensive Hacking 26 Authchip Count 2 Item Schematics ----------------- Hcp. Storage Unit | -7/Recycling | Hacked IN-MT5's Pitchfork "Insurrection" | -7/Scraptown | Archive Biomechanical Wings | -5/Factory | Scanalyzed Multitool | -4/Factory | Scanalyzed Cld. Nuclear Pulse Thruster | -4/Factory | Hacked Exp. Utility Shielding | -4/Factory | Hacked Biometal Heavy Treads | -4/Factory | Hacked Adv. Recalibrator | -4/Factory | Hacked Enh. Quantum Rifle | -4/Factory | Hacked Impulse Thruster | -4/Factory | Hacked Biometal Medium Treads | -4/Factory | Hacked Adv. Matter Compressor | -3/Testing | Archive Exp. Heat Sink | -3/Testing | Archive Exp. Weapon Shielding | -3/Testing | Archive Adv. KE Penetrator | -3/Testing | Archive Spectral Analyzer | -3/Testing | Hacked Exp. Thermal Generator | -3/Testing | Archive Tiamat Missile Launcher | -3/Testing | Archive Cld. Plasma Rifle | -3/Testing | Archive Hvy. Proton Missile Launcher | -3/Testing | Archive Imp. Energy Well | -3/Testing | Archive Exp. Myomer Leg | -3/Testing | Archive Stealth Drone Bay | -3/Testing | Archive Hvy. Proton Cannon | -3/Testing | Archive Imp. Diametric Drive | -3/Testing | Archive Adv. Quantum Shading Machine | -3/Testing | Hacked Hvy. Tesla Rifle | -3/Testing | Archive Prc. Matter Filter | -3/Testing | Archive Exp. Target Analyzer | -3/Testing | Archive Enh. Armored Medium Treads | -3/Testing | Archive Exp. Thermal Shield | -3/Testing | Archive Tactical Quantum Warhead | -3/Testing | Archive Cld. Antigrav System | -3/Testing | Archive Lrn. Phase Cannon | -3/Testing | Archive Electron Diverter | -3/Testing | Archive Exp. Matter Compressor | -3/Testing | Archive Graviton Reactor | -3/Testing | Archive Exp. Hacking Suite | -3/Testing | Archive Exp. Optical Array | -2/Protoforge | Archive Imp. Matter Neutralizer | -2/Protoforge | Archive Diametric Drive | -2/Protoforge | Archive Helical Railgun | -2/Protoforge | Archive Adv. Kinecellerator | -2/Protoforge | Archive Cld. Field Propulsion Drive | -2/Protoforge | Archive Imp. Quantum Reactor | -2/Protoforge | Archive Molecular Scythe | -2/Protoforge | Archive Thermal Barrier | -2/Protoforge | Archive Exp. Power Amplifier | -2/Protoforge | Archive Com. Tesla Bomb Launcher | -2/Protoforge | Archive Adv. Micro-nuke Launcher | -2/Protoforge | Archive Exp. Biometal Heavy Treads | -2/Protoforge | Archive Adv. Gravity Neutralizer | -2/Protoforge | Archive Enh. Biometal Leg | -2/Protoforge | Archive Com. Linear Accelerator | -2/Protoforge | Archive Hds. Centrium Leg | -2/Protoforge | Archive Hvy. Neutron Cannon | -2/Protoforge | Archive Gravity Neutralizer | -2/Protoforge | Archive Exp. Propulsion Shielding | -2/Protoforge | Archive Exp. Field Recycling Unit | -2/Protoforge | Archive Exp. System Shield | -2/Protoforge | Archive Exp. Signal Interpreter | -2/Protoforge | Archive Robot Schematics ------------------ G-50 Soldier | -4/Factory | Hacked T-07 Excavator | -3/Testing | Archive B-60 Warrior | -3/Testing | Archive A-02 Transporter | -3/Testing | Archive K-01 Serf | -3/Testing | Archive S-43 Plague | -3/Testing | Archive B-74 Champion | -3/Testing | Archive G-67 Veteran | -3/Testing | Archive A-15 Conveyor | -2/Protoforge | Archive R-10 Processor | -2/Protoforge | Archive A-27 Freighter | -2/Protoforge | Archive M-30 Cleanser | -2/Protoforge | Archive Fabricated ------------ IN-MT5's Pitchfork "Insurrection" | x1 | -5/Factory | Authchip IN-MT5's Pitchfork "Insurrection" | x1 | -5/Factory | Authchip IN-MT5's Pitchfork "Insurrection" | x1 | -5/Factory | Authchip Cld. Nuclear Pulse Thruster | x1 | -4/Factory | Authchip IN-MT5's Pitchfork "Insurrection" | x1 | -4/Factory | Authchip Cld. Nuclear Pulse Thruster | x1 | -4/Factory Repaired ---------- Hvy. Rocket Launcher | 24% | -5/Extension Lyr. Light Armor Plating | 38% | -2/Quarantine Impulse Thruster Array | 67% | -2/Quarantine Cld. Nuclear Pulse Thruster | 61% | -2/Quarantine | Broken Alien Tech Used ----------------- Sigix Broadsword Dimensional Node Initializer Subatomic Replicator Supercharged TR Concept Nanofilaments [Conductive] Transdimensional Reconstructor Achievements -------------- None Challenges ------------ None Game ------ Seed KineticModifiedScrap Manual? 0 Play Time 05:51:45 Cumulative 1188.6 hours Start 2025.05.26 @ 09:50:28 End 2025.05.26 @ 16:41:13 Sessions 1 Manual Loads 0 Difficulty Rogue Special Mode None Game No. 524 Rogue 523 Adventurer 1 Explorer 0 Win Type - Total 189 Types 54/16/29/5/2/1/75/3/2/2 Lore% 97 Gallery% 99 Achievement% 94 Wizard Run 0 Options --------- Layout 2 ASCII 0 Keyboard 1 Movement Numpad Keybinds 0 Fullscreen 0 Font 24/Terminus Map View 50x44 Zoom Use 0% Tactical HUD 1 Map Filters NONE Filters NONE Steam 1 RUN: bc43e3a5-fb77-4117-b2d6-48d23e0429e1